Workbook

Sheet Einstellung
H3: Futterberechnung zur Fütterung der Schafe und Ziegen
H4: Gruber Tabelle, 48. Auflage / August 2023 www.LfL.Bayern.de
C5: Tierhaltungsschule | E5: Triesdorf
C6: Markgrafenstraße 1
C7: 91746 | D7: Weidenbach
C8: Betr. Nr. | D8: 091231234444
C11: Freie Software
C13: keine Gewährleistung!
C18: Update vom 08.11.2023
C23: ths@triesdorf.de

Sheet Sollwerte
A2: Richtwerte zur Nährstoffversorgung aus Gruber Tabelle S. 60 ff Alle Felder können mit eigenen Werten überschrieben werden.
A4: Tier | B4: Kenn - Nr. | C4: TM / Tag g | D4: aNDFom | E4: XP | F4: nXP | G4: ME/MJ | H4: NEL/MJ | I4: Ca g | J4: P g | K4: Mg g | L4: Na g | M4: K g | N4: Cl g | O4: S g
A5: Sollwerte aus Liste wählen >>> | B5: 0 | C5: 0 | D5: 0 | E5: 0 | F5: 0 | G5: 0 | I5: 0 | J5: 0 | K5: 0 | L5: 0 | M5: 0
A6: Mutterschaf 70 kg (leer/niedertragend) | B6: 1 | C6: 1250 | D6: 250 | E6: 90 | F6: 90 | G6: 11 | I6: 5 | J6: 4 | K6: 1 | L6: 1 | M6: 10
A7: Mutterschaf 70 kg (hochtragend 5. Monat) | B7: 2 | C7: 1650 | D7: 250 | E7: 160 | F7: 160 | G7: 15.5 | I7: 9 | J7: 6 | K7: 1.5 | L7: 2 | M7: 10
A8: Mutterschaf 70 kg (säugend, 1 Lamm) | B8: 3 | C8: 2100 | D8: 250 | E8: 300 | F8: 300 | G8: 22.4 | I8: 16 | J8: 9 | K8: 2.5 | L8: 2 | M8: 15
A9: Mutterschaf 70 kg (säugend, 2 Lämmer) | B9: 4 | C9: 2400 | D9: 250 | E9: 370 | F9: 370 | G9: 26.4 | I9: 19.7 | J9: 10.7 | K9: 3 | L9: 2.3 | M9: 15
A10: 5 | B10: 5
A11: Mutterschaf 85 kg (leer/niedertragend) | B11: 6 | C11: 1440 | D11: 250 | E11: 105 | F11: 105 | G11: 12.7 | I11: 5 | J11: 4 | K11: 1 | L11: 1 | M11: 10
A12: Mutterschaf 85 kg (hochtragend 5. Monat) | B12: 7 | C12: 1940 | D12: 250 | E12: 170 | F12: 170 | G12: 18.3 | I12: 9 | J12: 6 | K12: 1.5 | L12: 2 | M12: 10
A13: Mutterschaf 85 kg (säugend, 1 Lamm) | B13: 8 | C13: 2280 | D13: 250 | E13: 315 | F13: 315 | G13: 24 | I13: 16 | J13: 9 | K13: 2.5 | L13: 2 | M13: 15
A14: Mutterschaf 85 kg (säugend, 2 Lämmer) | B14: 9 | C14: 2580 | D14: 250 | E14: 385 | F14: 385 | G14: 28 | I14: 19.7 | J14: 10.7 | K14: 3 | L14: 2.3 | M14: 15
A15: 10 | B15: 10
A16: Mutterschaf 100 kg (leer/niedertragend) | B16: 11 | C16: 1640 | D16: 250 | E16: 120 | F16: 120 | G16: 14.3 | I16: 5 | J16: 4 | K16: 1 | L16: 1 | M16: 10
A17: Mutterschaf 100 kg (hochtragend 5. Monat) | B17: 12 | C17: 2200 | D17: 250 | E17: 185 | F17: 185 | G17: 21 | I17: 9 | J17: 6 | K17: 1.5 | L17: 2 | M17: 10
A18: Mutterschaf 100 kg (säugend, 1 Lamm) | B18: 13 | C18: 2450 | D18: 250 | E18: 330 | F18: 330 | G18: 25.6 | I18: 16 | J18: 9 | K18: 2.5 | L18: 2 | M18: 15
A19: Mutterschaf 100 kg (säugend, 2 Lämmer) | B19: 14 | C19: 2750 | D19: 250 | E19: 400 | F19: 400 | G19: 29.6 | I19: 19.7 | J19: 10.7 | K19: 3 | L19: 2.3 | M19: 15
A20: 15 | B20: 15
A21: Jungschaf /Jungbock (4 - 7 Monate) | B21: 16 | C21: 1200 | D21: 250 | E21: 175 | F21: 175 | G21: 13.8 | I21: 13 | J21: 5
A22: 17 | B22: 17
A23: Mastlamm 250 g tgl. ZN - >25 kg 1-6 Wo. | B23: 18 | C23: 1100 | D23: 250 | E23: 170 | F23: 170 | G23: 12.1 | I23: 9 | J23: 3.7 | K23: 0.8 | L23: 0.8 | M23: 15
A24: Mastlamm 250 g tgl. ZN - <45 kg 10-12 Wo. | B24: 19 | C24: 1200 | D24: 250 | E24: 180 | F24: 180 | G24: 13.6 | I24: 11 | J24: 4.3 | K24: 1.1 | L24: 1.1 | M24: 15
A25: 20 | B25: 20
A26: Mastlamm 400 g tgl. ZN - >25 kg - 1-4 Wo. | B26: 21 | C26: 1500 | D26: 250 | E26: 240 | F26: 240 | G26: 17.4 | I26: 9 | J26: 3.7 | K26: 0.8 | L26: 0.8 | M26: 15
A27: Mastlamm 400 g tägl. ZN - 45 kg - 4-7 Wo. | B27: 22 | C27: 1600 | D27: 250 | E27: 255 | F27: 255 | G27: 19.1 | I27: 11 | J27: 4.3 | K27: 1.1 | L27: 1.1 | M27: 15
A28: 23 | B28: 23
A29: Böcke m. 100 - 120 kg (Erhaltung) | B29: 24 | C29: 1600 | E29: 120 | G29: 15 | I29: 8 | J29: 5
A30: Böcke m. 100 - 120 kg (Deckzeit) | B30: 25 | C30: 2000 | E30: 280 | G30: 20 | I30: 12 | J30: 7
A31: 26 | B31: 26
A32: 27 | B32: 27
A33: Milchschaf 80 kg LM - 2 kg Milch | B33: 28 | C33: 2800 | D33: 250 | F33: 327 | G33: 23 | H33: 16 | I33: 10.7 | J33: 10 | K33: 3.4 | L33: 1.8
A34: Milchschaf 80 kg LM - 3 kg Milch | B34: 29 | C34: 3000 | D34: 250 | F34: 443 | G34: 29.7 | H34: 20.2 | I34: 13.5 | J34: 12.3 | K34: 4.5 | L34: 2.3
A35: Milchschaf 80 kg LM - 4 kg Milch | B35: 30 | C35: 3100 | D35: 250 | F35: 559 | G35: 36.4 | H35: 24.5 | I35: 17.4 | J35: 14.7 | K35: 5.6 | L35: 2.8
A36: 31 | B36: 31
A37: 32 | B37: 32
A38: 33 | B38: 33
A39: Ziegen Leer, trag. < 4 Mon. - LG 45 kg | B39: 34 | C39: 900 | F39: 85 | G39: 7.6 | I39: 3.5 | J39: 2.8 | K39: 1.1 | L39: 1.1 | M39: 4.4 | N39: 0.6
A40: Ziegen Leer, trag. < 4 Mon. - LG 60 kg | B40: 35 | C40: 1100 | F40: 113 | G40: 9.7 | I40: 3.5 | J40: 2.8 | K40: 1.1 | L40: 1.1 | M40: 4.4 | N40: 0.6
A41: Ziegen Leer, trag. < 4 Mon. - LG 75 kg | B41: 36 | C41: 1300 | F41: 142 | G41: 11.5 | I41: 3.5 | J41: 2.8 | K41: 1.1 | L41: 1.1 | M41: 4.4 | N41: 0.6
A42: Ziegen tragend ab 5. Mon. - LG 45 kg | B42: 37 | C42: 1200 | F42: 119 | G42: 10.4 | I42: 4.4 | J42: 3.4 | K42: 1.4 | L42: 1.3 | M42: 6 | N42: 1.9
A43: Ziegen tragend ab 5. Mon. - LG 60 kg | B43: 38 | C43: 1400 | F43: 150 | G43: 13 | I43: 4.4 | J43: 3.4 | K43: 1.4 | L43: 1.3 | M43: 6 | N43: 1.9
A44: Ziegen tragend ab 5. Mon. - LG 75 kg | B44: 39 | C44: 1700 | F44: 162 | G44: 15.3 | I44: 4.4 | J44: 3.4 | K44: 1.4 | L44: 1.3 | M44: 6 | N44: 1.9
A45: 40 | B45: 40
A46: Milchziege - LG 45 kg - 1 kg Milch / Tag | B46: 41 | C46: 1358 | D46: 940 | E46: 146 | F46: 146 | G46: 12.5 | I46: 4.1 | J46: 3 | K46: 2.1 | L46: 0.8 | M46: 7 | N46: 2.1
A47: Milchziege - LG 45 kg - 2 kg Milch / Tag | B47: 42 | C47: 1777 | D47: 940 | E47: 221 | F47: 221 | G47: 17.2 | I47: 6.6 | J47: 4.7 | K47: 3.1 | L47: 1.4 | M47: 10.2 | N47: 3.7
A48: Milchziege - LG 45 kg - 3 kg Milch / Tag | B48: 43 | C48: 2164 | D48: 940 | E48: 295 | F48: 295 | G48: 21.9 | I48: 9 | J48: 6.3 | K48: 4.1 | L48: 1.9 | M48: 13.4 | N48: 5.3
A49: Milchziege - LG 45 kg - 4 kg Milch / Tag | B49: 44 | C49: 2521 | D49: 940 | E49: 368 | F49: 368 | G49: 26.6 | I49: 11.4 | J49: 7.8 | K49: 5.1 | L49: 2.5 | M49: 16.5 | N49: 6.9
A50: 45 | B50: 45
A51: Milchziege - LG 60 kg - 1 kg Milch / Tag | B51: 46 | C51: 1544 | D51: 940 | E51: 162 | F51: 162 | G51: 14.4 | I51: 4.4 | J51: 3.2 | K51: 2.3 | L51: 0.9 | M51: 7.6 | N51: 2.2
A52: Milchziege - LG 60 kg - 2 kg Milch / Tag | B52: 47 | C52: 1962 | D52: 940 | E52: 237 | F52: 237 | G52: 19.1 | I52: 6.9 | J52: 4.9 | K52: 3.3 | L52: 1.5 | M52: 10.8 | N52: 3.8
A53: Milchziege - LG 60 kg - 3 kg Milch / Tag | B53: 48 | C53: 2350 | D53: 940 | E53: 311 | F53: 311 | G53: 23.8 | I53: 9.3 | J53: 6.5 | K53: 4.3 | L53: 2 | M53: 14 | N53: 5.4
A54: Milchziege - LG 60 kg - 4 kg Milch / Tag | B54: 49 | C54: 2706 | D54: 940 | E54: 384 | F54: 384 | G54: 28.5 | I54: 11.7 | J54: 8.1 | K54: 5.3 | L54: 2.5 | M54: 17.1 | N54: 7
A55: Milchziege - LG 60 kg - 5 kg Milch / Tag | B55: 50 | C55: 3032 | D55: 940 | E55: 457 | F55: 457 | G55: 33.2 | I55: 14 | J55: 9.6 | K55: 6.2 | L55: 3.1 | M55: 20 | N55: 8.5
A56: 51 | B56: 51
A57: Milchziege - LG 75 kg - 1 kg Millch / Tag | B57: 52 | C57: 1718 | D57: 940 | E57: 175 | F57: 175 | G57: 16.2 | I57: 4.6 | J57: 3.5 | K57: 2.5 | L57: 1 | M57: 8.1 | N57: 2.3
A58: Milchziege - LG 75 kg - 2 kg Millch / Tag | B58: 53 | C58: 2137 | D58: 940 | E58: 250 | F58: 250 | G58: 20.9 | I58: 7.2 | J58: 5.1 | K58: 3.5 | L58: 1.5 | M58: 11.4 | N58: 3.9
A59: Milchziege - LG 75 kg - 3 kg Millch / Tag | B59: 54 | C59: 2524 | D59: 940 | E59: 325 | F59: 325 | G59: 25.6 | I59: 9.6 | J59: 6.7 | K59: 4.5 | L59: 2.1 | M59: 14.6 | N59: 5.5
A60: Milchziege - LG 75 kg - 4 kg Millch / Tag | B60: 55 | C60: 2881 | D60: 940 | E60: 398 | F60: 398 | G60: 30.3 | I60: 12 | J60: 8.3 | K60: 5.4 | L60: 2.6 | M60: 17.6 | N60: 7.1
A61: Milchziege - LG 75 kg - 5 kg Millch / Tag | B61: 56 | C61: 3206 | D61: 940 | E61: 470 | F61: 470 | G61: 35 | I61: 14.3 | J61: 9.8 | K61: 6.4 | L61: 3.1 | M61: 20.6 | N61: 8.6
A62: Milchziege - LG 75 kg - 6 kg Millch / Tag | B62: 57 | C62: 3500 | D62: 940 | E62: 542 | F62: 542 | G62: 39.7 | I62: 16.6 | J62: 11.3 | K62: 7.3 | L62: 3.6 | M62: 13.4 | N62: 10.1
A63: 58 | B63: 58
A64: Ziegenkitz - 12 kg LG - Zun. 100 g / Tag | B64: 59 | C64: 406 | D64: 330 | E64: 38 | F64: 38 | G64: 4.1 | I64: 1.6 | J64: 1 | K64: 5 | L64: 0.3 | M64: 1.5 | N64: 0.3
A65: Ziegenkitz - 12 kg LG - Zun. 200 g / Tag | B65: 60 | C65: 603 | D65: 330 | E65: 78 | F65: 78 | G65: 6.3 | I65: 3.4 | J65: 2 | K65: 0.9 | L65: 0.4 | M65: 2.3 | N65: 0.5
A66: Ziegenkitz - 20 kg LG - Zun. 100 g / Tag | B66: 61 | C66: 743 | D66: 330 | E66: 81 | F66: 81 | G66: 7.6 | I66: 3 | J66: 1.9 | K66: 1 | L66: 0.4 | M66: 2.7 | N66: 0.5
A67: Ziegenkitz - 20 kg LG - Zun. 200 g / Tag | B67: 62 | C67: 973 | D67: 330 | E67: 125 | F67: 125 | G67: 10.4 | I67: 4.9 | J67: 2.9 | K67: 1.4 | L67: 0.6 | M67: 3.6 | N67: 0.8
A68: Ziegenkitz - 30 kg LG - Zun. 100 g / Tag | B68: 63 | C68: 1027 | D68: 330 | E68: 106 | F68: 106 | G68: 10.6 | I68: 3.5 | J68: 2.3 | K68: 1.3 | L68: 0.5 | M68: 3.6 | N68: 0.7
A69: Ziegenkitz - 30 kg LG - Zun. 200 g / Tag | B69: 64 | C69: 1328 | D69: 330 | E69: 153 | F69: 153 | G69: 14.2 | I69: 5.6 | J69: 3.4 | K69: 1.8 | L69: 0.8 | M69: 4.8 | N69: 0.9
A70: 65 | B70: 65
A71: 66 | B71: 66
A72: 67 | B72: 67
A73: 68 | B73: 68
A74: 69 | B74: 69
A75: 70 | B75: 70

Sheet Ration
C1: Bitte eine Tierart aus der Liste auswählen!
F2: Nähr- und Mineralstoffgehalte in 1000 g Trockenmasse
A3: Nr. | B3: Futterart | E3: TM g | F3: XF g | G3: aNDFom g | H3: XP g | I3: nXP g | J3: ME Mj | K3: NEL Mj | L3: Ca | M3: P | N3: Mg | O3: Na | P3: K | Q3: Cl | R3: S | S3: Preis / dt FM | T3: Typ
B4: =IFERROR(VLOOKUP(A4,'Gruber Tabelle'!$A$8:$W$404,2,0),"") -> 0 | E4: =IFERROR(VLOOKUP(A4,'Gruber Tabelle'!$A$8:$W$404,3,0),"") -> 0 | F4: =IFERROR(VLOOKUP(A4,'Gruber Tabelle'!$A$8:$W$404,4,0),"") -> 0 | G4: =IFERROR(VLOOKUP(A4,'Gruber Tabelle'!$A$8:$W$404,5,0),"") -> 0 | H4: =IFERROR(VLOOKUP(A4,'Gruber Tabelle'!$A$8:$W$404,7,0),"") -> 0 | I4: =IFERROR(VLOOKUP(A4,'Gruber Tabelle'!$A$8:$W$404,8,0),"") -> 0 | J4: =IFERROR(VLOOKUP(A4,'Gruber Tabelle'!$A$8:$W$404,12,0),"") -> 0 | K4: =IFERROR(VLOOKUP(A4,'Gruber Tabelle'!$A$8:$W$404,11,0),"") -> 0 | L4: =IFERROR(VLOOKUP(A4,'Gruber Tabelle'!$A$8:$W$404,16,0),"") -> 0 | M4: =IFERROR(VLOOKUP(A4,'Gruber Tabelle'!$A$8:$W$404,17,0),"") -> 0 | N4: =IFERROR(VLOOKUP(A4,'Gruber Tabelle'!$A$8:$W$404,18,0),"") -> 0 | O4: =IFERROR(VLOOKUP(A4,'Gruber Tabelle'!$A$8:$W$404,19,0),"") -> 0 | P4: =IFERROR(VLOOKUP(A4,'Gruber Tabelle'!$A$8:$W$404,20,0),"") -> 0 | Q4: =IFERROR(VLOOKUP(A4,'Gruber Tabelle'!$A$8:$W$404,21,0),"") -> 0 | R4: =IFERROR(VLOOKUP(A4,'Gruber Tabelle'!$A$8:$W$404,22,0),"") -> 0 | S4: =IFERROR(VLOOKUP(A4,'Gruber Tabelle'!$A$8:$W$404,23,0),"") -> 0 | T4: =IFERROR(VLOOKUP(A4,'Gruber Tabelle'!$A$8:$X$404,24,0),"") -> 0
B5: =IFERROR(VLOOKUP(A5,'Gruber Tabelle'!$A$8:$W$404,2,0),"") -> 0 | E5: =IFERROR(VLOOKUP(A5,'Gruber Tabelle'!$A$8:$W$404,3,0),"") -> 0 | F5: =IFERROR(VLOOKUP(A5,'Gruber Tabelle'!$A$8:$W$404,4,0),"") -> 0 | G5: =IFERROR(VLOOKUP(A5,'Gruber Tabelle'!$A$8:$W$404,5,0),"") -> 0 | H5: =IFERROR(VLOOKUP(A5,'Gruber Tabelle'!$A$8:$W$404,7,0),"") -> 0 | I5: =IFERROR(VLOOKUP(A5,'Gruber Tabelle'!$A$8:$W$404,8,0),"") -> 0 | J5: =IFERROR(VLOOKUP(A5,'Gruber Tabelle'!$A$8:$W$404,12,0),"") -> 0 | K5: =IFERROR(VLOOKUP(A5,'Gruber Tabelle'!$A$8:$W$404,11,0),"") -> 0 | L5: =IFERROR(VLOOKUP(A5,'Gruber Tabelle'!$A$8:$W$404,16,0),"") -> 0 | M5: =IFERROR(VLOOKUP(A5,'Gruber Tabelle'!$A$8:$W$404,17,0),"") -> 0 | N5: =IFERROR(VLOOKUP(A5,'Gruber Tabelle'!$A$8:$W$404,18,0),"") -> 0 | O5: =IFERROR(VLOOKUP(A5,'Gruber Tabelle'!$A$8:$W$404,19,0),"") -> 0 | P5: =IFERROR(VLOOKUP(A5,'Gruber Tabelle'!$A$8:$W$404,20,0),"") -> 0 | Q5: =IFERROR(VLOOKUP(A5,'Gruber Tabelle'!$A$8:$W$404,21,0),"") -> 0 | R5: =IFERROR(VLOOKUP(A5,'Gruber Tabelle'!$A$8:$W$404,22,0),"") -> 0 | S5: =IFERROR(VLOOKUP(A5,'Gruber Tabelle'!$A$8:$W$404,23,0),"") -> 0 | T5: =IFERROR(VLOOKUP(A5,'Gruber Tabelle'!$A$8:$X$404,24,0),"") -> 0
B6: =IFERROR(VLOOKUP(A6,'Gruber Tabelle'!$A$8:$W$404,2,0),"") -> 0 | E6: =IFERROR(VLOOKUP(A6,'Gruber Tabelle'!$A$8:$W$404,3,0),"") -> 0 | F6: =IFERROR(VLOOKUP(A6,'Gruber Tabelle'!$A$8:$W$404,4,0),"") -> 0 | G6: =IFERROR(VLOOKUP(A6,'Gruber Tabelle'!$A$8:$W$404,5,0),"") -> 0 | H6: =IFERROR(VLOOKUP(A6,'Gruber Tabelle'!$A$8:$W$404,7,0),"") -> 0 | I6: =IFERROR(VLOOKUP(A6,'Gruber Tabelle'!$A$8:$W$404,8,0),"") -> 0 | J6: =IFERROR(VLOOKUP(A6,'Gruber Tabelle'!$A$8:$W$404,12,0),"") -> 0 | K6: =IFERROR(VLOOKUP(A6,'Gruber Tabelle'!$A$8:$W$404,11,0),"") -> 0 | L6: =IFERROR(VLOOKUP(A6,'Gruber Tabelle'!$A$8:$W$404,16,0),"") -> 0 | M6: =IFERROR(VLOOKUP(A6,'Gruber Tabelle'!$A$8:$W$404,17,0),"") -> 0 | N6: =IFERROR(VLOOKUP(A6,'Gruber Tabelle'!$A$8:$W$404,18,0),"") -> 0 | O6: =IFERROR(VLOOKUP(A6,'Gruber Tabelle'!$A$8:$W$404,19,0),"") -> 0 | P6: =IFERROR(VLOOKUP(A6,'Gruber Tabelle'!$A$8:$W$404,20,0),"") -> 0 | Q6: =IFERROR(VLOOKUP(A6,'Gruber Tabelle'!$A$8:$W$404,21,0),"") -> 0 | R6: =IFERROR(VLOOKUP(A6,'Gruber Tabelle'!$A$8:$W$404,22,0),"") -> 0 | S6: =IFERROR(VLOOKUP(A6,'Gruber Tabelle'!$A$8:$W$404,23,0),"") -> 0 | T6: =IFERROR(VLOOKUP(A6,'Gruber Tabelle'!$A$8:$X$404,24,0),"") -> 0
B7: =IFERROR(VLOOKUP(A7,'Gruber Tabelle'!$A$8:$W$404,2,0),"") -> 0 | E7: =IFERROR(VLOOKUP(A7,'Gruber Tabelle'!$A$8:$W$404,3,0),"") -> 0 | F7: =IFERROR(VLOOKUP(A7,'Gruber Tabelle'!$A$8:$W$404,4,0),"") -> 0 | G7: =IFERROR(VLOOKUP(A7,'Gruber Tabelle'!$A$8:$W$404,5,0),"") -> 0 | H7: =IFERROR(VLOOKUP(A7,'Gruber Tabelle'!$A$8:$W$404,7,0),"") -> 0 | I7: =IFERROR(VLOOKUP(A7,'Gruber Tabelle'!$A$8:$W$404,8,0),"") -> 0 | J7: =IFERROR(VLOOKUP(A7,'Gruber Tabelle'!$A$8:$W$404,12,0),"") -> 0 | K7: =IFERROR(VLOOKUP(A7,'Gruber Tabelle'!$A$8:$W$404,11,0),"") -> 0 | L7: =IFERROR(VLOOKUP(A7,'Gruber Tabelle'!$A$8:$W$404,16,0),"") -> 0 | M7: =IFERROR(VLOOKUP(A7,'Gruber Tabelle'!$A$8:$W$404,17,0),"") -> 0 | N7: =IFERROR(VLOOKUP(A7,'Gruber Tabelle'!$A$8:$W$404,18,0),"") -> 0 | O7: =IFERROR(VLOOKUP(A7,'Gruber Tabelle'!$A$8:$W$404,19,0),"") -> 0 | P7: =IFERROR(VLOOKUP(A7,'Gruber Tabelle'!$A$8:$W$404,20,0),"") -> 0 | Q7: =IFERROR(VLOOKUP(A7,'Gruber Tabelle'!$A$8:$W$404,21,0),"") -> 0 | R7: =IFERROR(VLOOKUP(A7,'Gruber Tabelle'!$A$8:$W$404,22,0),"") -> 0 | S7: =IFERROR(VLOOKUP(A7,'Gruber Tabelle'!$A$8:$W$404,23,0),"") -> 0 | T7: =IFERROR(VLOOKUP(A7,'Gruber Tabelle'!$A$8:$X$404,24,0),"") -> 0
B8: =IFERROR(VLOOKUP(A8,'Gruber Tabelle'!$A$8:$W$404,2,0),"") -> 0 | E8: =IFERROR(VLOOKUP(A8,'Gruber Tabelle'!$A$8:$W$404,3,0),"") -> 0 | F8: =IFERROR(VLOOKUP(A8,'Gruber Tabelle'!$A$8:$W$404,4,0),"") -> 0 | G8: =IFERROR(VLOOKUP(A8,'Gruber Tabelle'!$A$8:$W$404,5,0),"") -> 0 | H8: =IFERROR(VLOOKUP(A8,'Gruber Tabelle'!$A$8:$W$404,7,0),"") -> 0 | I8: =IFERROR(VLOOKUP(A8,'Gruber Tabelle'!$A$8:$W$404,8,0),"") -> 0 | J8: =IFERROR(VLOOKUP(A8,'Gruber Tabelle'!$A$8:$W$404,12,0),"") -> 0 | K8: =IFERROR(VLOOKUP(A8,'Gruber Tabelle'!$A$8:$W$404,11,0),"") -> 0 | L8: =IFERROR(VLOOKUP(A8,'Gruber Tabelle'!$A$8:$W$404,16,0),"") -> 0 | M8: =IFERROR(VLOOKUP(A8,'Gruber Tabelle'!$A$8:$W$404,17,0),"") -> 0 | N8: =IFERROR(VLOOKUP(A8,'Gruber Tabelle'!$A$8:$W$404,18,0),"") -> 0 | O8: =IFERROR(VLOOKUP(A8,'Gruber Tabelle'!$A$8:$W$404,19,0),"") -> 0 | P8: =IFERROR(VLOOKUP(A8,'Gruber Tabelle'!$A$8:$W$404,20,0),"") -> 0 | Q8: =IFERROR(VLOOKUP(A8,'Gruber Tabelle'!$A$8:$W$404,21,0),"") -> 0 | R8: =IFERROR(VLOOKUP(A8,'Gruber Tabelle'!$A$8:$W$404,22,0),"") -> 0 | S8: =IFERROR(VLOOKUP(A8,'Gruber Tabelle'!$A$8:$W$404,23,0),"") -> 0 | T8: =IFERROR(VLOOKUP(A8,'Gruber Tabelle'!$A$8:$X$404,24,0),"") -> 0
B9: =IFERROR(VLOOKUP(A9,'Gruber Tabelle'!$A$8:$W$404,2,0),"") -> 0 | E9: =IFERROR(VLOOKUP(A9,'Gruber Tabelle'!$A$8:$W$404,3,0),"") -> 0 | F9: =IFERROR(VLOOKUP(A9,'Gruber Tabelle'!$A$8:$W$404,4,0),"") -> 0 | G9: =IFERROR(VLOOKUP(A9,'Gruber Tabelle'!$A$8:$W$404,5,0),"") -> 0 | H9: =IFERROR(VLOOKUP(A9,'Gruber Tabelle'!$A$8:$W$404,7,0),"") -> 0 | I9: =IFERROR(VLOOKUP(A9,'Gruber Tabelle'!$A$8:$W$404,8,0),"") -> 0 | J9: =IFERROR(VLOOKUP(A9,'Gruber Tabelle'!$A$8:$W$404,12,0),"") -> 0 | K9: =IFERROR(VLOOKUP(A9,'Gruber Tabelle'!$A$8:$W$404,11,0),"") -> 0 | L9: =IFERROR(VLOOKUP(A9,'Gruber Tabelle'!$A$8:$W$404,16,0),"") -> 0 | M9: =IFERROR(VLOOKUP(A9,'Gruber Tabelle'!$A$8:$W$404,17,0),"") -> 0 | N9: =IFERROR(VLOOKUP(A9,'Gruber Tabelle'!$A$8:$W$404,18,0),"") -> 0 | O9: =IFERROR(VLOOKUP(A9,'Gruber Tabelle'!$A$8:$W$404,19,0),"") -> 0 | P9: =IFERROR(VLOOKUP(A9,'Gruber Tabelle'!$A$8:$W$404,20,0),"") -> 0 | Q9: =IFERROR(VLOOKUP(A9,'Gruber Tabelle'!$A$8:$W$404,21,0),"") -> 0 | R9: =IFERROR(VLOOKUP(A9,'Gruber Tabelle'!$A$8:$W$404,22,0),"") -> 0 | S9: =IFERROR(VLOOKUP(A9,'Gruber Tabelle'!$A$8:$W$404,23,0),"") -> 0 | T9: =IFERROR(VLOOKUP(A9,'Gruber Tabelle'!$A$8:$X$404,24,0),"") -> 0
B10: =IFERROR(VLOOKUP(A10,'Gruber Tabelle'!$A$8:$W$404,2,0),"") -> 0 | E10: =IFERROR(VLOOKUP(A10,'Gruber Tabelle'!$A$8:$W$404,3,0),"") -> 0 | F10: =IFERROR(VLOOKUP(A10,'Gruber Tabelle'!$A$8:$W$404,4,0),"") -> 0 | G10: =IFERROR(VLOOKUP(A10,'Gruber Tabelle'!$A$8:$W$404,5,0),"") -> 0 | H10: =IFERROR(VLOOKUP(A10,'Gruber Tabelle'!$A$8:$W$404,7,0),"") -> 0 | I10: =IFERROR(VLOOKUP(A10,'Gruber Tabelle'!$A$8:$W$404,8,0),"") -> 0 | J10: =IFERROR(VLOOKUP(A10,'Gruber Tabelle'!$A$8:$W$404,12,0),"") -> 0 | K10: =IFERROR(VLOOKUP(A10,'Gruber Tabelle'!$A$8:$W$404,11,0),"") -> 0 | L10: =IFERROR(VLOOKUP(A10,'Gruber Tabelle'!$A$8:$W$404,16,0),"") -> 0 | M10: =IFERROR(VLOOKUP(A10,'Gruber Tabelle'!$A$8:$W$404,17,0),"") -> 0 | N10: =IFERROR(VLOOKUP(A10,'Gruber Tabelle'!$A$8:$W$404,18,0),"") -> 0 | O10: =IFERROR(VLOOKUP(A10,'Gruber Tabelle'!$A$8:$W$404,19,0),"") -> 0 | P10: =IFERROR(VLOOKUP(A10,'Gruber Tabelle'!$A$8:$W$404,20,0),"") -> 0 | Q10: =IFERROR(VLOOKUP(A10,'Gruber Tabelle'!$A$8:$W$404,21,0),"") -> 0 | R10: =IFERROR(VLOOKUP(A10,'Gruber Tabelle'!$A$8:$W$404,22,0),"") -> 0 | S10: =IFERROR(VLOOKUP(A10,'Gruber Tabelle'!$A$8:$W$404,23,0),"") -> 0 | T10: =IFERROR(VLOOKUP(A10,'Gruber Tabelle'!$A$8:$X$404,24,0),"") -> 0
B11: =IFERROR(VLOOKUP(A11,'Gruber Tabelle'!$A$8:$W$404,2,0),"") -> 0 | E11: =IFERROR(VLOOKUP(A11,'Gruber Tabelle'!$A$8:$W$404,3,0),"") -> 0 | F11: =IFERROR(VLOOKUP(A11,'Gruber Tabelle'!$A$8:$W$404,4,0),"") -> 0 | G11: =IFERROR(VLOOKUP(A11,'Gruber Tabelle'!$A$8:$W$404,5,0),"") -> 0 | H11: =IFERROR(VLOOKUP(A11,'Gruber Tabelle'!$A$8:$W$404,7,0),"") -> 0 | I11: =IFERROR(VLOOKUP(A11,'Gruber Tabelle'!$A$8:$W$404,8,0),"") -> 0 | J11: =IFERROR(VLOOKUP(A11,'Gruber Tabelle'!$A$8:$W$404,12,0),"") -> 0 | K11: =IFERROR(VLOOKUP(A11,'Gruber Tabelle'!$A$8:$W$404,11,0),"") -> 0 | L11: =IFERROR(VLOOKUP(A11,'Gruber Tabelle'!$A$8:$W$404,16,0),"") -> 0 | M11: =IFERROR(VLOOKUP(A11,'Gruber Tabelle'!$A$8:$W$404,17,0),"") -> 0 | N11: =IFERROR(VLOOKUP(A11,'Gruber Tabelle'!$A$8:$W$404,18,0),"") -> 0 | O11: =IFERROR(VLOOKUP(A11,'Gruber Tabelle'!$A$8:$W$404,19,0),"") -> 0 | P11: =IFERROR(VLOOKUP(A11,'Gruber Tabelle'!$A$8:$W$404,20,0),"") -> 0 | Q11: =IFERROR(VLOOKUP(A11,'Gruber Tabelle'!$A$8:$W$404,21,0),"") -> 0 | R11: =IFERROR(VLOOKUP(A11,'Gruber Tabelle'!$A$8:$W$404,22,0),"") -> 0 | S11: =IFERROR(VLOOKUP(A11,'Gruber Tabelle'!$A$8:$W$404,23,0),"") -> 0 | T11: =IFERROR(VLOOKUP(A11,'Gruber Tabelle'!$A$8:$X$404,24,0),"") -> 0
B12: =IFERROR(VLOOKUP(A12,'Gruber Tabelle'!$A$8:$W$404,2,0),"") -> 0 | E12: =IFERROR(VLOOKUP(A12,'Gruber Tabelle'!$A$8:$W$404,3,0),"") -> 0 | F12: =IFERROR(VLOOKUP(A12,'Gruber Tabelle'!$A$8:$W$404,4,0),"") -> 0 | G12: =IFERROR(VLOOKUP(A12,'Gruber Tabelle'!$A$8:$W$404,5,0),"") -> 0 | H12: =IFERROR(VLOOKUP(A12,'Gruber Tabelle'!$A$8:$W$404,7,0),"") -> 0 | I12: =IFERROR(VLOOKUP(A12,'Gruber Tabelle'!$A$8:$W$404,8,0),"") -> 0 | J12: =IFERROR(VLOOKUP(A12,'Gruber Tabelle'!$A$8:$W$404,12,0),"") -> 0 | K12: =IFERROR(VLOOKUP(A12,'Gruber Tabelle'!$A$8:$W$404,11,0),"") -> 0 | L12: =IFERROR(VLOOKUP(A12,'Gruber Tabelle'!$A$8:$W$404,16,0),"") -> 0 | M12: =IFERROR(VLOOKUP(A12,'Gruber Tabelle'!$A$8:$W$404,17,0),"") -> 0 | N12: =IFERROR(VLOOKUP(A12,'Gruber Tabelle'!$A$8:$W$404,18,0),"") -> 0 | O12: =IFERROR(VLOOKUP(A12,'Gruber Tabelle'!$A$8:$W$404,19,0),"") -> 0 | P12: =IFERROR(VLOOKUP(A12,'Gruber Tabelle'!$A$8:$W$404,20,0),"") -> 0 | Q12: =IFERROR(VLOOKUP(A12,'Gruber Tabelle'!$A$8:$W$404,21,0),"") -> 0 | R12: =IFERROR(VLOOKUP(A12,'Gruber Tabelle'!$A$8:$W$404,22,0),"") -> 0 | S12: =IFERROR(VLOOKUP(A12,'Gruber Tabelle'!$A$8:$W$404,23,0),"") -> 0 | T12: =IFERROR(VLOOKUP(A12,'Gruber Tabelle'!$A$8:$X$404,24,0),"") -> 0
B13: =IFERROR(VLOOKUP(A13,'Gruber Tabelle'!$A$8:$W$404,2,0),"") -> 0 | E13: =IFERROR(VLOOKUP(A13,'Gruber Tabelle'!$A$8:$W$404,3,0),"") -> 0 | F13: =IFERROR(VLOOKUP(A13,'Gruber Tabelle'!$A$8:$W$404,4,0),"") -> 0 | G13: =IFERROR(VLOOKUP(A13,'Gruber Tabelle'!$A$8:$W$404,5,0),"") -> 0 | H13: =IFERROR(VLOOKUP(A13,'Gruber Tabelle'!$A$8:$W$404,7,0),"") -> 0 | I13: =IFERROR(VLOOKUP(A13,'Gruber Tabelle'!$A$8:$W$404,8,0),"") -> 0 | J13: =IFERROR(VLOOKUP(A13,'Gruber Tabelle'!$A$8:$W$404,12,0),"") -> 0 | K13: =IFERROR(VLOOKUP(A13,'Gruber Tabelle'!$A$8:$W$404,11,0),"") -> 0 | L13: =IFERROR(VLOOKUP(A13,'Gruber Tabelle'!$A$8:$W$404,16,0),"") -> 0 | M13: =IFERROR(VLOOKUP(A13,'Gruber Tabelle'!$A$8:$W$404,17,0),"") -> 0 | N13: =IFERROR(VLOOKUP(A13,'Gruber Tabelle'!$A$8:$W$404,18,0),"") -> 0 | O13: =IFERROR(VLOOKUP(A13,'Gruber Tabelle'!$A$8:$W$404,19,0),"") -> 0 | P13: =IFERROR(VLOOKUP(A13,'Gruber Tabelle'!$A$8:$W$404,20,0),"") -> 0 | Q13: =IFERROR(VLOOKUP(A13,'Gruber Tabelle'!$A$8:$W$404,21,0),"") -> 0 | R13: =IFERROR(VLOOKUP(A13,'Gruber Tabelle'!$A$8:$W$404,22,0),"") -> 0 | S13: =IFERROR(VLOOKUP(A13,'Gruber Tabelle'!$A$8:$W$404,23,0),"") -> 0 | T13: =IFERROR(VLOOKUP(A13,'Gruber Tabelle'!$A$8:$X$404,24,0),"") -> 0
B14: Futterart | C14: TM % | D14: FM kg | E14: TM g | F14: XF g | G14: aNDFom g | H14: XP g | I14: nXP g | J14: ME Mj | K14: NEL Mj | L14: Ca | M14: P | N14: Mg | O14: Na | P14: K | Q14: Cl | R14: S | S14: Preis | T14: NDFomGF
A15: =A4 -> 0 | B15: 0 | E15: =IF(D15>0,(D15*C15)*1000,0) -> 0 | F15: =IF(D15>0,(F4*C15)*D15,0) -> 0 | G15: =IF(D15>0,(G4*C15)*D15,0) -> 0 | H15: =IF(D15>0,(H4*C15)*D15,0) -> 0 | I15: =IF(D15>0,(I4*C15)*D15,0) -> 0 | J15: =IF(D15>0,(J4*C15)*D15,0) -> 0 | K15: =IF(D15>0,(K4*C15)*D15,0) -> 0 | L15: =IF(D15>0,(L4*C15)*D15,0) -> 0 | M15: =IF(D15>0,(M4*C15)*D15,0) -> 0 | N15: =IF(D15>0,(N4*C15)*D15,0) -> 0 | O15: =IF(D15>0,(O4*C15)*D15,0) -> 0 | P15: =IF(D15>0,(P4*C15)*D15,0) -> 0 | Q15: =IF(D15>0,(Q4*C15)*D15,0) -> 0 | R15: =IF(D15>0,(R4*C15)*D15,0) -> 0 | S15: =IF(D15>0,S4*D15/100,0) -> 0 | T15: =IFERROR(IF(T4="GF",G4*E15/1000,0),0) -> 0
A16: 0 | B16: 0 | E16: =IF(D16>0,(D16*C16)*1000,0) -> 0 | F16: 0 | G16: =IF(D16>0,(G5*C16)*D16,0) -> 0 | H16: 0 | I16: 0 | J16: 0 | K16: 0 | L16: 0 | M16: 0 | N16: 0 | O16: 0 | P16: 0 | Q16: 0 | R16: 0 | S16: 0 | T16: =IFERROR(IF(T5="GF",G5*E16/1000,0),0) -> 0
A17: 0 | B17: 0 | E17: 0 | F17: 0 | G17: 0 | H17: 0 | I17: 0 | J17: 0 | K17: 0 | L17: 0 | M17: 0 | N17: 0 | O17: 0 | P17: 0 | Q17: 0 | R17: 0 | S17: 0 | T17: 0
A18: 0 | B18: 0 | E18: 0 | F18: 0 | G18: 0 | H18: 0 | I18: 0 | J18: 0 | K18: 0 | L18: 0 | M18: 0 | N18: 0 | O18: 0 | P18: 0 | Q18: 0 | R18: 0 | S18: 0 | T18: 0
A19: 0 | B19: 0 | E19: 0 | F19: 0 | G19: 0 | H19: 0 | I19: 0 | J19: 0 | K19: 0 | L19: 0 | M19: 0 | N19: 0 | O19: 0 | P19: 0 | Q19: 0 | R19: 0 | S19: 0 | T19: 0
A20: 0 | B20: 0 | E20: 0 | F20: 0 | G20: 0 | H20: 0 | I20: 0 | J20: 0 | K20: 0 | L20: 0 | M20: 0 | N20: 0 | O20: 0 | P20: 0 | Q20: 0 | R20: 0 | S20: 0 | T20: 0
A21: 0 | B21: 0 | E21: 0 | F21: 0 | G21: 0 | H21: 0 | I21: 0 | J21: 0 | K21: 0 | L21: 0 | M21: 0 | N21: 0 | O21: 0 | P21: 0 | Q21: 0 | R21: 0 | S21: 0 | T21: 0
A22: 0 | B22: 0 | E22: 0 | F22: 0 | G22: 0 | H22: 0 | I22: 0 | J22: 0 | K22: 0 | L22: 0 | M22: 0 | N22: 0 | O22: 0 | P22: 0 | Q22: 0 | R22: 0 | S22: 0 | T22: 0
A23: 0 | B23: 0 | E23: 0 | F23: 0 | G23: 0 | H23: 0 | I23: 0 | J23: 0 | K23: 0 | L23: 0 | M23: 0 | N23: 0 | O23: 0 | P23: 0 | Q23: 0 | R23: 0 | S23: 0 | T23: 0
A24: 0 | B24: 0 | E24: 0 | F24: 0 | G24: 0 | H24: 0 | I24: 0 | J24: 0 | K24: 0 | L24: 0 | M24: 0 | N24: 0 | O24: 0 | P24: 0 | Q24: 0 | R24: 0 | S24: 0 | T24: 0
A25: Summen und Gehaltswerte: | D25: =SUM(D15:D24) -> 0 | E25: =SUM(E15:E24) -> 0 | F25: =SUM(F15:F24) -> 0 | G25: =SUM(G15:G24) -> 0 | H25: =SUM(H15:H24) -> 0 | I25: 0 | J25: 0 | K25: 0 | L25: 0 | M25: 0 | N25: 0 | O25: 0 | P25: 0 | Q25: 0 | R25: 0 | S25: 0 | T25: =SUM(T15:T24) -> 0
A26: Mischung 1 kg: | E26: =SUM(D26*'Mischung 1'!F25) -> 0 | F26: =IF(D26>0,'Mischung 1'!G25*D26,0) -> 0 | H26: =IF(D26>0,'Mischung 1'!I25*D26,0) -> 0 | I26: =IF(D26>0,'Mischung 1'!J25*D26,0) -> 0 | J26: =IF(D26>0,'Mischung 1'!K25*D26,0) -> 0 | K26: =IF(D26>0,'Mischung 1'!L25*D26,0) -> 0 | L26: =IF(D26>0,'Mischung 1'!M25*D26,0) -> 0 | M26: =IF(D26>0,'Mischung 1'!N25*D26,0) -> 0 | N26: =IF(D26>0,'Mischung 1'!O25*D26,0) -> 0 | O26: =IF(D26>0,'Mischung 1'!P25*D26,0) -> 0 | P26: =IF(D26>0,'Mischung 1'!Q25*D26,0) -> 0 | Q26: =IF(D26>0,'Mischung 1'!R25*D26,0) -> 0 | R26: =IF(D26>0,'Mischung 1'!S25*D26,0) -> 0 | S26: =IF('Mischung 1'!T25>0,'Mischung 1'!T25*D26,0) -> 0
A27: Mischung 2 kg: | E27: =SUM(D27*'Mischung 2'!F25) -> 0 | F27: =IF(D27>0,'Mischung 2'!G25*D27,0) -> 0 | H27: =IF(D27>0,'Mischung 2'!I25*D27,0) -> 0 | I27: =IF(D27>0,'Mischung 2'!J25*D27,0) -> 0 | J27: =IF(D27>0,'Mischung 2'!K25*D27,0) -> 0 | K27: =IF(D27>0,'Mischung 2'!L25*D27,0) -> 0 | L27: =IF(D27>0,'Mischung 2'!M25*D27,0) -> 0 | M27: =IF(D27>0,'Mischung 2'!N25*D27,0) -> 0 | N27: =IF(D27>0,'Mischung 2'!O25*D27,0) -> 0 | O27: =IF(D27>0,'Mischung 2'!P25*D27,0) -> 0 | P27: =IF(D27>0,'Mischung 2'!Q25*D27,0) -> 0 | Q27: =IF(D27>0,'Mischung 2'!R25*D27,0) -> 0 | R27: =IF(D27>0,'Mischung 2'!S25*D27,0) -> 0 | S27: =IF('Mischung 2'!T25>0,'Mischung 2'!T25*D27,0) -> 0
A28: Summe Grundfutter + Kraftfutter | D28: =SUM(D25:D27) -> 0 | E28: =SUM(E25+E26+E27) -> 0 | F28: =SUM(F25+F26+F27) -> 0 | G28: =IF(G25>0,G25,0) -> 0 | H28: 0 | I28: 0 | J28: 0 | K28: 0 | L28: 0 | M28: 0 | N28: 0 | O28: 0 | P28: 0 | Q28: 0 | R28: 0 | S28: 0
A30: Sollwerte aus Liste wählen >>> | D30: TM g : | E30: =IFERROR(VLOOKUP(A30,Sollwerte!$A$5:$O$75,3,0),0) -> 0 | G30: =IFERROR(VLOOKUP(A30,Sollwerte!$A$5:$O$75,4,0),0) -> 0 | H30: =IFERROR(VLOOKUP(A30,Sollwerte!$A$5:$O$75,5,0),0) -> 0 | I30: =IFERROR(VLOOKUP(A30,Sollwerte!$A$5:$O$75,6,0),0) -> 0 | J30: =IFERROR(VLOOKUP(A30,Sollwerte!$A$5:$O$75,7,0),0) -> 0 | K30: =IFERROR(VLOOKUP(A30,Sollwerte!$A$5:$O$75,8,0),0) -> 0 | L30: =IFERROR(VLOOKUP(A30,Sollwerte!$A$5:$O$75,9,0),0) -> 0 | M30: =IFERROR(VLOOKUP(A30,Sollwerte!$A$5:$O$75,10,0),0) -> 0 | N30: =IFERROR(VLOOKUP(A30,Sollwerte!$A$5:$O$75,11,0),0) -> 0 | O30: =IFERROR(VLOOKUP(A30,Sollwerte!$A$5:$O$75,12,0),0) -> 0 | P30: =IFERROR(VLOOKUP(A30,Sollwerte!$A$5:$O$75,13,0),0) -> 0 | Q30: =IFERROR(VLOOKUP(A30,Sollwerte!$A$5:$O$75,14,0),0) -> 0 | R30: =IFERROR(VLOOKUP(A30,Sollwerte!$A$5:$O$75,15,0),0) -> 0
A31: Differenz zum Sollwert - XF % / aNDF % | E31: =IF(E30>0,E28-E30,0) -> 0 | F31: =IF(F28>0,F28/E28,0) -> 0 | G31: =IF(G28>0,T25/E28,0) -> 0 | H31: =IF(H30>0,H28-H30,0) -> 0 | I31: =IF(I30>0,I28-I30,0) -> 0 | J31: =IF(J30>0,J28-J30,0) -> 0 | K31: 0 | L31: 0 | M31: 0 | N31: 0 | O31: 0 | P31: 0 | Q31: 0 | R31: 0
E32: =IF(E31=0,0,E31/E30) -> 0 | H32: =IF(H31=0,0,H31/H30) -> 0 | I32: =IF(I31=0,0,I31/I30) -> 0 | J32: =IF(J31=0,0,J31/J30) -> 0 | K32: 0 | L32: 0 | M32: 0 | N32: 0 | O32: 0 | P32: 0 | Q32: 0 | R32: 0

Sheet Mischung 1
A2: Kraftfutter – Mischung 1 | G2: Nähr- und Mineralstoffgehalte je kg TM
A3: Nr | B3: Futterart | F3: TM g | G3: XF g | H3: aNDFom g | I3: XP g | J3: nXP g | K3: ME Mj | L3: NEL Mj | M3: Ca | N3: P | O3: Mg | P3: Na | Q3: K | R3: Cl | S3: S | T3: Preis / dt FM
B4: =IFERROR(VLOOKUP(A4,'Gruber Tabelle'!$A$8:$W$405,2,0),"") -> 0 | F4: =IFERROR(VLOOKUP(A4,'Gruber Tabelle'!$A$8:$W$404,3,0),"") -> 0 | G4: =IFERROR(VLOOKUP(A4,'Gruber Tabelle'!$A$8:$W$404,4,0),"") -> 0 | H4: =IFERROR(VLOOKUP(A4,'Gruber Tabelle'!$A$8:$W$404,5,0),"") -> 0 | I4: =IFERROR(VLOOKUP(A4,'Gruber Tabelle'!$A$8:$W$404,7,0),"") -> 0 | J4: =IFERROR(VLOOKUP(A4,'Gruber Tabelle'!$A$8:$W$404,8,0),"") -> 0 | K4: =IFERROR(VLOOKUP(A4,'Gruber Tabelle'!$A$5:$W$404,12,0),"") -> 0 | L4: =IFERROR(VLOOKUP(A4,'Gruber Tabelle'!$A$5:$W$404,11,0),"") -> 0 | M4: =IFERROR(VLOOKUP(A4,'Gruber Tabelle'!$A$8:$W$404,16,0),"") -> 0 | N4: =IFERROR(VLOOKUP(A4,'Gruber Tabelle'!$A$8:$W$404,17,0),"") -> 0 | O4: =IFERROR(VLOOKUP(A4,'Gruber Tabelle'!$A$8:$W$404,18,0),"") -> 0 | P4: =IFERROR(VLOOKUP(A4,'Gruber Tabelle'!$A$8:$W$404,19,0),"") -> 0 | Q4: =IFERROR(VLOOKUP(A4,'Gruber Tabelle'!$A$8:$W$404,20,0),"") -> 0 | R4: =IFERROR(VLOOKUP(A4,'Gruber Tabelle'!$A$8:$W$404,21,0),"") -> 0 | S4: =IFERROR(VLOOKUP(A4,'Gruber Tabelle'!$A$8:$W$404,22,0),"") -> 0 | T4: =IFERROR(VLOOKUP(A4,'Gruber Tabelle'!$A$8:$W$404,23,0),"") -> 0
B5: =IFERROR(VLOOKUP(A5,'Gruber Tabelle'!$A$8:$W$405,2,0),"") -> 0 | F5: =IFERROR(VLOOKUP(A5,'Gruber Tabelle'!$A$8:$W$404,3,0),"") -> 0 | G5: =IFERROR(VLOOKUP(A5,'Gruber Tabelle'!$A$8:$W$404,4,0),"") -> 0 | H5: =IFERROR(VLOOKUP(A5,'Gruber Tabelle'!$A$8:$W$404,5,0),"") -> 0 | I5: =IFERROR(VLOOKUP(A5,'Gruber Tabelle'!$A$8:$W$404,7,0),"") -> 0 | J5: =IFERROR(VLOOKUP(A5,'Gruber Tabelle'!$A$8:$W$404,8,0),"") -> 0 | K5: =IFERROR(VLOOKUP(A5,'Gruber Tabelle'!$A$5:$W$404,12,0),"") -> 0 | L5: =IFERROR(VLOOKUP(A5,'Gruber Tabelle'!$A$5:$W$404,11,0),"") -> 0 | M5: =IFERROR(VLOOKUP(A5,'Gruber Tabelle'!$A$8:$W$404,16,0),"") -> 0 | N5: =IFERROR(VLOOKUP(A5,'Gruber Tabelle'!$A$8:$W$404,17,0),"") -> 0 | O5: =IFERROR(VLOOKUP(A5,'Gruber Tabelle'!$A$8:$W$404,18,0),"") -> 0 | P5: =IFERROR(VLOOKUP(A5,'Gruber Tabelle'!$A$8:$W$404,19,0),"") -> 0 | Q5: =IFERROR(VLOOKUP(A5,'Gruber Tabelle'!$A$8:$W$404,20,0),"") -> 0 | R5: =IFERROR(VLOOKUP(A5,'Gruber Tabelle'!$A$8:$W$404,21,0),"") -> 0 | S5: =IFERROR(VLOOKUP(A5,'Gruber Tabelle'!$A$8:$W$404,22,0),"") -> 0 | T5: =IFERROR(VLOOKUP(A5,'Gruber Tabelle'!$A$8:$W$404,23,0),"") -> 0
B6: =IFERROR(VLOOKUP(A6,'Gruber Tabelle'!$A$8:$W$405,2,0),"") -> 0 | F6: =IFERROR(VLOOKUP(A6,'Gruber Tabelle'!$A$8:$W$404,3,0),"") -> 0 | G6: =IFERROR(VLOOKUP(A6,'Gruber Tabelle'!$A$8:$W$404,4,0),"") -> 0 | H6: =IFERROR(VLOOKUP(A6,'Gruber Tabelle'!$A$8:$W$404,5,0),"") -> 0 | I6: =IFERROR(VLOOKUP(A6,'Gruber Tabelle'!$A$8:$W$404,7,0),"") -> 0 | J6: =IFERROR(VLOOKUP(A6,'Gruber Tabelle'!$A$8:$W$404,8,0),"") -> 0 | K6: =IFERROR(VLOOKUP(A6,'Gruber Tabelle'!$A$5:$W$404,12,0),"") -> 0 | L6: =IFERROR(VLOOKUP(A6,'Gruber Tabelle'!$A$5:$W$404,11,0),"") -> 0 | M6: =IFERROR(VLOOKUP(A6,'Gruber Tabelle'!$A$8:$W$404,16,0),"") -> 0 | N6: =IFERROR(VLOOKUP(A6,'Gruber Tabelle'!$A$8:$W$404,17,0),"") -> 0 | O6: =IFERROR(VLOOKUP(A6,'Gruber Tabelle'!$A$8:$W$404,18,0),"") -> 0 | P6: =IFERROR(VLOOKUP(A6,'Gruber Tabelle'!$A$8:$W$404,19,0),"") -> 0 | Q6: =IFERROR(VLOOKUP(A6,'Gruber Tabelle'!$A$8:$W$404,20,0),"") -> 0 | R6: =IFERROR(VLOOKUP(A6,'Gruber Tabelle'!$A$8:$W$404,21,0),"") -> 0 | S6: =IFERROR(VLOOKUP(A6,'Gruber Tabelle'!$A$8:$W$404,22,0),"") -> 0 | T6: =IFERROR(VLOOKUP(A6,'Gruber Tabelle'!$A$8:$W$404,23,0),"") -> 0
B7: =IFERROR(VLOOKUP(A7,'Gruber Tabelle'!$A$8:$W$405,2,0),"") -> 0 | F7: =IFERROR(VLOOKUP(A7,'Gruber Tabelle'!$A$8:$W$404,3,0),"") -> 0 | G7: =IFERROR(VLOOKUP(A7,'Gruber Tabelle'!$A$8:$W$404,4,0),"") -> 0 | H7: =IFERROR(VLOOKUP(A7,'Gruber Tabelle'!$A$8:$W$404,5,0),"") -> 0 | I7: =IFERROR(VLOOKUP(A7,'Gruber Tabelle'!$A$8:$W$404,7,0),"") -> 0 | J7: =IFERROR(VLOOKUP(A7,'Gruber Tabelle'!$A$8:$W$404,8,0),"") -> 0 | K7: =IFERROR(VLOOKUP(A7,'Gruber Tabelle'!$A$5:$W$404,12,0),"") -> 0 | L7: =IFERROR(VLOOKUP(A7,'Gruber Tabelle'!$A$5:$W$404,11,0),"") -> 0 | M7: =IFERROR(VLOOKUP(A7,'Gruber Tabelle'!$A$8:$W$404,16,0),"") -> 0 | N7: =IFERROR(VLOOKUP(A7,'Gruber Tabelle'!$A$8:$W$404,17,0),"") -> 0 | O7: =IFERROR(VLOOKUP(A7,'Gruber Tabelle'!$A$8:$W$404,18,0),"") -> 0 | P7: =IFERROR(VLOOKUP(A7,'Gruber Tabelle'!$A$8:$W$404,19,0),"") -> 0 | Q7: =IFERROR(VLOOKUP(A7,'Gruber Tabelle'!$A$8:$W$404,20,0),"") -> 0 | R7: =IFERROR(VLOOKUP(A7,'Gruber Tabelle'!$A$8:$W$404,21,0),"") -> 0 | S7: =IFERROR(VLOOKUP(A7,'Gruber Tabelle'!$A$8:$W$404,22,0),"") -> 0 | T7: =IFERROR(VLOOKUP(A7,'Gruber Tabelle'!$A$8:$W$404,23,0),"") -> 0
B8: =IFERROR(VLOOKUP(A8,'Gruber Tabelle'!$A$8:$W$405,2,0),"") -> 0 | F8: =IFERROR(VLOOKUP(A8,'Gruber Tabelle'!$A$8:$W$404,3,0),"") -> 0 | G8: =IFERROR(VLOOKUP(A8,'Gruber Tabelle'!$A$8:$W$404,4,0),"") -> 0 | H8: =IFERROR(VLOOKUP(A8,'Gruber Tabelle'!$A$8:$W$404,5,0),"") -> 0 | I8: =IFERROR(VLOOKUP(A8,'Gruber Tabelle'!$A$8:$W$404,7,0),"") -> 0 | J8: =IFERROR(VLOOKUP(A8,'Gruber Tabelle'!$A$8:$W$404,8,0),"") -> 0 | K8: =IFERROR(VLOOKUP(A8,'Gruber Tabelle'!$A$5:$W$404,12,0),"") -> 0 | L8: =IFERROR(VLOOKUP(A8,'Gruber Tabelle'!$A$5:$W$404,11,0),"") -> 0 | M8: =IFERROR(VLOOKUP(A8,'Gruber Tabelle'!$A$8:$W$404,16,0),"") -> 0 | N8: =IFERROR(VLOOKUP(A8,'Gruber Tabelle'!$A$8:$W$404,17,0),"") -> 0 | O8: =IFERROR(VLOOKUP(A8,'Gruber Tabelle'!$A$8:$W$404,18,0),"") -> 0 | P8: =IFERROR(VLOOKUP(A8,'Gruber Tabelle'!$A$8:$W$404,19,0),"") -> 0 | Q8: =IFERROR(VLOOKUP(A8,'Gruber Tabelle'!$A$8:$W$404,20,0),"") -> 0 | R8: =IFERROR(VLOOKUP(A8,'Gruber Tabelle'!$A$8:$W$404,21,0),"") -> 0 | S8: =IFERROR(VLOOKUP(A8,'Gruber Tabelle'!$A$8:$W$404,22,0),"") -> 0 | T8: =IFERROR(VLOOKUP(A8,'Gruber Tabelle'!$A$8:$W$404,23,0),"") -> 0
B9: =IFERROR(VLOOKUP(A9,'Gruber Tabelle'!$A$8:$W$405,2,0),"") -> 0 | F9: =IFERROR(VLOOKUP(A9,'Gruber Tabelle'!$A$8:$W$404,3,0),"") -> 0 | G9: =IFERROR(VLOOKUP(A9,'Gruber Tabelle'!$A$8:$W$404,4,0),"") -> 0 | H9: =IFERROR(VLOOKUP(A9,'Gruber Tabelle'!$A$8:$W$404,5,0),"") -> 0 | I9: =IFERROR(VLOOKUP(A9,'Gruber Tabelle'!$A$8:$W$404,7,0),"") -> 0 | J9: =IFERROR(VLOOKUP(A9,'Gruber Tabelle'!$A$8:$W$404,8,0),"") -> 0 | K9: =IFERROR(VLOOKUP(A9,'Gruber Tabelle'!$A$5:$W$404,12,0),"") -> 0 | L9: =IFERROR(VLOOKUP(A9,'Gruber Tabelle'!$A$5:$W$404,11,0),"") -> 0 | M9: =IFERROR(VLOOKUP(A9,'Gruber Tabelle'!$A$8:$W$404,16,0),"") -> 0 | N9: =IFERROR(VLOOKUP(A9,'Gruber Tabelle'!$A$8:$W$404,17,0),"") -> 0 | O9: =IFERROR(VLOOKUP(A9,'Gruber Tabelle'!$A$8:$W$404,18,0),"") -> 0 | P9: =IFERROR(VLOOKUP(A9,'Gruber Tabelle'!$A$8:$W$404,19,0),"") -> 0 | Q9: =IFERROR(VLOOKUP(A9,'Gruber Tabelle'!$A$8:$W$404,20,0),"") -> 0 | R9: =IFERROR(VLOOKUP(A9,'Gruber Tabelle'!$A$8:$W$404,21,0),"") -> 0 | S9: =IFERROR(VLOOKUP(A9,'Gruber Tabelle'!$A$8:$W$404,22,0),"") -> 0 | T9: =IFERROR(VLOOKUP(A9,'Gruber Tabelle'!$A$8:$W$404,23,0),"") -> 0
B10: =IFERROR(VLOOKUP(A10,'Gruber Tabelle'!$A$8:$W$405,2,0),"") -> 0 | F10: =IFERROR(VLOOKUP(A10,'Gruber Tabelle'!$A$8:$W$404,3,0),"") -> 0 | G10: =IFERROR(VLOOKUP(A10,'Gruber Tabelle'!$A$8:$W$404,4,0),"") -> 0 | H10: =IFERROR(VLOOKUP(A10,'Gruber Tabelle'!$A$8:$W$404,5,0),"") -> 0 | I10: =IFERROR(VLOOKUP(A10,'Gruber Tabelle'!$A$8:$W$404,7,0),"") -> 0 | J10: =IFERROR(VLOOKUP(A10,'Gruber Tabelle'!$A$8:$W$404,8,0),"") -> 0 | K10: =IFERROR(VLOOKUP(A10,'Gruber Tabelle'!$A$5:$W$404,12,0),"") -> 0 | L10: =IFERROR(VLOOKUP(A10,'Gruber Tabelle'!$A$5:$W$404,11,0),"") -> 0 | M10: =IFERROR(VLOOKUP(A10,'Gruber Tabelle'!$A$8:$W$404,16,0),"") -> 0 | N10: =IFERROR(VLOOKUP(A10,'Gruber Tabelle'!$A$8:$W$404,17,0),"") -> 0 | O10: =IFERROR(VLOOKUP(A10,'Gruber Tabelle'!$A$8:$W$404,18,0),"") -> 0 | P10: =IFERROR(VLOOKUP(A10,'Gruber Tabelle'!$A$8:$W$404,19,0),"") -> 0 | Q10: =IFERROR(VLOOKUP(A10,'Gruber Tabelle'!$A$8:$W$404,20,0),"") -> 0 | R10: =IFERROR(VLOOKUP(A10,'Gruber Tabelle'!$A$8:$W$404,21,0),"") -> 0 | S10: =IFERROR(VLOOKUP(A10,'Gruber Tabelle'!$A$8:$W$404,22,0),"") -> 0 | T10: =IFERROR(VLOOKUP(A10,'Gruber Tabelle'!$A$8:$W$404,23,0),"") -> 0
B11: =IFERROR(VLOOKUP(A11,'Gruber Tabelle'!$A$8:$W$405,2,0),"") -> 0 | F11: =IFERROR(VLOOKUP(A11,'Gruber Tabelle'!$A$8:$W$404,3,0),"") -> 0 | G11: =IFERROR(VLOOKUP(A11,'Gruber Tabelle'!$A$8:$W$404,4,0),"") -> 0 | H11: =IFERROR(VLOOKUP(A11,'Gruber Tabelle'!$A$8:$W$404,5,0),"") -> 0 | I11: =IFERROR(VLOOKUP(A11,'Gruber Tabelle'!$A$8:$W$404,7,0),"") -> 0 | J11: =IFERROR(VLOOKUP(A11,'Gruber Tabelle'!$A$8:$W$404,8,0),"") -> 0 | K11: =IFERROR(VLOOKUP(A11,'Gruber Tabelle'!$A$5:$W$404,12,0),"") -> 0 | L11: =IFERROR(VLOOKUP(A11,'Gruber Tabelle'!$A$5:$W$404,11,0),"") -> 0 | M11: =IFERROR(VLOOKUP(A11,'Gruber Tabelle'!$A$8:$W$404,16,0),"") -> 0 | N11: =IFERROR(VLOOKUP(A11,'Gruber Tabelle'!$A$8:$W$404,17,0),"") -> 0 | O11: =IFERROR(VLOOKUP(A11,'Gruber Tabelle'!$A$8:$W$404,18,0),"") -> 0 | P11: =IFERROR(VLOOKUP(A11,'Gruber Tabelle'!$A$8:$W$404,19,0),"") -> 0 | Q11: =IFERROR(VLOOKUP(A11,'Gruber Tabelle'!$A$8:$W$404,20,0),"") -> 0 | R11: =IFERROR(VLOOKUP(A11,'Gruber Tabelle'!$A$8:$W$404,21,0),"") -> 0 | S11: =IFERROR(VLOOKUP(A11,'Gruber Tabelle'!$A$8:$W$404,22,0),"") -> 0 | T11: =IFERROR(VLOOKUP(A11,'Gruber Tabelle'!$A$8:$W$404,23,0),"") -> 0
B12: =IFERROR(VLOOKUP(A12,'Gruber Tabelle'!$A$8:$W$405,2,0),"") -> 0 | F12: =IFERROR(VLOOKUP(A12,'Gruber Tabelle'!$A$8:$W$404,3,0),"") -> 0 | G12: =IFERROR(VLOOKUP(A12,'Gruber Tabelle'!$A$8:$W$404,4,0),"") -> 0 | H12: =IFERROR(VLOOKUP(A12,'Gruber Tabelle'!$A$8:$W$404,5,0),"") -> 0 | I12: =IFERROR(VLOOKUP(A12,'Gruber Tabelle'!$A$8:$W$404,7,0),"") -> 0 | J12: =IFERROR(VLOOKUP(A12,'Gruber Tabelle'!$A$8:$W$404,8,0),"") -> 0 | K12: =IFERROR(VLOOKUP(A12,'Gruber Tabelle'!$A$5:$W$404,12,0),"") -> 0 | L12: =IFERROR(VLOOKUP(A12,'Gruber Tabelle'!$A$5:$W$404,11,0),"") -> 0 | M12: =IFERROR(VLOOKUP(A12,'Gruber Tabelle'!$A$8:$W$404,16,0),"") -> 0 | N12: =IFERROR(VLOOKUP(A12,'Gruber Tabelle'!$A$8:$W$404,17,0),"") -> 0 | O12: =IFERROR(VLOOKUP(A12,'Gruber Tabelle'!$A$8:$W$404,18,0),"") -> 0 | P12: =IFERROR(VLOOKUP(A12,'Gruber Tabelle'!$A$8:$W$404,19,0),"") -> 0 | Q12: =IFERROR(VLOOKUP(A12,'Gruber Tabelle'!$A$8:$W$404,20,0),"") -> 0 | R12: =IFERROR(VLOOKUP(A12,'Gruber Tabelle'!$A$8:$W$404,21,0),"") -> 0 | S12: =IFERROR(VLOOKUP(A12,'Gruber Tabelle'!$A$8:$W$404,22,0),"") -> 0 | T12: =IFERROR(VLOOKUP(A12,'Gruber Tabelle'!$A$8:$W$404,23,0),"") -> 0
B13: =IFERROR(VLOOKUP(A13,'Gruber Tabelle'!$A$8:$W$405,2,0),"") -> 0 | F13: =IFERROR(VLOOKUP(A13,'Gruber Tabelle'!$A$8:$W$404,3,0),"") -> 0 | G13: =IFERROR(VLOOKUP(A13,'Gruber Tabelle'!$A$8:$W$404,4,0),"") -> 0 | H13: =IFERROR(VLOOKUP(A13,'Gruber Tabelle'!$A$8:$W$404,5,0),"") -> 0 | I13: =IFERROR(VLOOKUP(A13,'Gruber Tabelle'!$A$8:$W$404,7,0),"") -> 0 | J13: =IFERROR(VLOOKUP(A13,'Gruber Tabelle'!$A$8:$W$404,8,0),"") -> 0 | K13: =IFERROR(VLOOKUP(A13,'Gruber Tabelle'!$A$5:$W$404,12,0),"") -> 0 | L13: =IFERROR(VLOOKUP(A13,'Gruber Tabelle'!$A$5:$W$404,11,0),"") -> 0 | M13: =IFERROR(VLOOKUP(A13,'Gruber Tabelle'!$A$8:$W$404,16,0),"") -> 0 | N13: =IFERROR(VLOOKUP(A13,'Gruber Tabelle'!$A$8:$W$404,17,0),"") -> 0 | O13: =IFERROR(VLOOKUP(A13,'Gruber Tabelle'!$A$8:$W$404,18,0),"") -> 0 | P13: =IFERROR(VLOOKUP(A13,'Gruber Tabelle'!$A$8:$W$404,19,0),"") -> 0 | Q13: =IFERROR(VLOOKUP(A13,'Gruber Tabelle'!$A$8:$W$404,20,0),"") -> 0 | R13: =IFERROR(VLOOKUP(A13,'Gruber Tabelle'!$A$8:$W$404,21,0),"") -> 0 | S13: =IFERROR(VLOOKUP(A13,'Gruber Tabelle'!$A$8:$W$404,22,0),"") -> 0 | T13: =IFERROR(VLOOKUP(A13,'Gruber Tabelle'!$A$8:$W$404,23,0),"") -> 0
A14: Nr | B14: Futterart | C14: Mischungs- Anteil in % | D14: TM % | E14: FM kg | F14: TM g | G14: XF g | H14: aNDFom g | I14: XP g | J14: nXP g | K14: ME Mj | L14: NEL Mj | M14: Ca | N14: P | O14: Mg | P14: Na | Q14: K | R14: Cl | S14: S | T14: Preis
A15: =A4 -> 0 | B15: 0 | D15: =IFERROR(VLOOKUP(A4,'Gruber Tabelle'!$A$5:$T$405,3,0)/1000,"") -> 0 | E15: =IF(C15>0,1*C15," ") ->  | F15: =IFERROR(IF(C15>0,F4*C15," "),"") ->  | G15: =IFERROR(IF($G$4>0,(G4*C15)*D15," "),"") ->  | H15: =IFERROR(IF(H4>0,(H4*C15)*D15," "),"") ->  | I15: =IFERROR(IF(I4>0,(I4*C15)*D15," "),"") ->  | J15: =IFERROR(IF(J4>0,(J4*C15)*D15," "),"") ->  | K15: =IFERROR(IF(K4>0,(K4*C15)*D15," "),"") ->  | L15: =IFERROR(IF(L4>0,(L4*C15)*D15," "),"") ->  | M15: =IFERROR(IF(M4>0,(M4*C15)*D15," "),"") ->  | N15: =IFERROR(IF(N4>0,(N4*C15)*D15," "),"") ->  | O15: =IFERROR(IF(O4>0,(O4*C15)*D15," "),"") ->  | P15: =IFERROR(IF(P4>0,(P4*C15)*D15," "),"") ->  | Q15: =IFERROR(IF(Q4>0,(Q4*C15)*D15," "),"") ->  | R15: =IFERROR(IF(R4>0,(R4*C15)*D15," "),"") ->  | S15: =IFERROR(IF(S4>0,(S4*C15)*D15," "),"") ->  | T15: =IFERROR(IF(C15>0,T4*E15/100,0),"") -> 0
A16: 0 | B16: 0 | D16: =IFERROR(VLOOKUP(A5,'Gruber Tabelle'!$A$5:$T$405,3,0)/1000,"") -> 0 | E16: =IF(C16>0,1*C16," ") ->  | F16: =IFERROR(IF(C16>0,F5*C16," "),"") ->  | G16: =IFERROR(IF($G$5>0,(G5*C16)*D16," "),"") ->  | H16: =IFERROR(IF(H5>0,(H5*C16)*D16," "),"") ->  | I16: =IFERROR(IF(I5>0,(I5*C16)*D16," "),"") ->  | J16: =IFERROR(IF(J5>0,(J5*C16)*D16," "),"") ->  | K16: =IFERROR(IF(K5>0,(K5*C16)*D16," "),"") ->  | L16: =IFERROR(IF(L5>0,(L5*C16)*D16," "),"") ->  | M16: =IFERROR(IF(M5>0,(M5*C16)*D16," "),"") ->  | N16: =IFERROR(IF(N5>0,(N5*C16)*D16," "),"") ->  | O16: =IFERROR(IF(O5>0,(O5*C16)*D16," "),"") ->  | P16: =IFERROR(IF(P5>0,(P5*C16)*D16," "),"") ->  | Q16: =IFERROR(IF(Q5>0,(Q5*C16)*D16," "),"") ->  | R16: =IFERROR(IF(R5>0,(R5*C16)*D16," "),"") ->  | S16: =IFERROR(IF(S5>0,(S5*C16)*D16," "),"") ->  | T16: =IFERROR(IF(C16>0,T5*E16/100,0),"") -> 0
A17: 0 | B17: 0 | D17: =IFERROR(VLOOKUP(A6,'Gruber Tabelle'!$A$5:$T$405,3,0)/1000,"") -> 0 | G17: =IFERROR(IF($G$6>0,(G6*C17)*D17," "),"") ->  | T17: 0
A18: 0 | B18: 0 | D18: =IFERROR(VLOOKUP(A7,'Gruber Tabelle'!$A$5:$T$405,3,0)/1000,"") -> 0 | G18: =IFERROR(IF($G$7>0,(G7*C18)*D18," "),"") ->  | T18: 0
A19: 0 | B19: 0 | D19: =IFERROR(VLOOKUP(A8,'Gruber Tabelle'!$A$5:$T$405,3,0)/1000,"") -> 0 | G19: =IFERROR(IF($G$8>0,(G8*C19)*D19," "),"") ->  | T19: 0
A20: 0 | B20: 0 | D20: =IFERROR(VLOOKUP(A9,'Gruber Tabelle'!$A$5:$T$405,3,0)/1000,"") -> 0 | G20: =IFERROR(IF($G$9>0,(G9*C20)*D20," "),"") ->  | T20: 0
A21: 0 | B21: 0 | D21: =IFERROR(VLOOKUP(A10,'Gruber Tabelle'!$A$5:$T$405,3,0)/1000,"") -> 0 | G21: =IFERROR(IF($G$10>0,(G10*C21)*D21," "),"") ->  | T21: 0
A22: 0 | B22: 0 | D22: =IFERROR(VLOOKUP(A11,'Gruber Tabelle'!$A$5:$T$405,3,0)/1000,"") -> 0 | G22: =IFERROR(IF($G$11>0,(G11*C22)*D22," "),"") ->  | T22: 0
A23: 0 | B23: 0 | D23: =IFERROR(VLOOKUP(A12,'Gruber Tabelle'!$A$5:$T$405,3,0)/1000,"") -> 0 | G23: =IFERROR(IF($G$12>0,(G12*C23)*D23," "),"") ->  | T23: 0
A24: 0 | B24: 0 | D24: =IFERROR(VLOOKUP(A13,'Gruber Tabelle'!$A$5:$T$405,3,0)/1000,"") -> 0 | G24: =IFERROR(IF($G$13>0,(G13*C24)*D24," "),"") ->  | T24: 0
A25: FM | B25: Summe: | C25: =SUM(C15:C24) -> 0 | E25: =SUM(E15:E24) -> 0 | F25: 0 | G25: 0 | H25: 0 | I25: =SUM(I15:I24) -> 0 | J25: =SUM(J15:J24) -> 0 | K25: 0 | L25: 0 | M25: 0 | N25: 0 | O25: 0 | P25: 0 | Q25: 0 | R25: 0 | S25: 0 | T25: 0

Sheet Mischung 2
A2: Kraftfutter – Mischung 2 | F2: Nähr- und Mineralstoffgehalte je kg TM
A3: Nr | B3: Futterart | F3: TM g | G3: XF g | H3: aNDFom g | I3: XP g | J3: nXP g | K3: ME Mj | L3: NEL Mj | M3: Ca | N3: P | O3: Mg | P3: Na | Q3: K | R3: Cl | S3: S | T3: Preis / dt FM
B4: =IFERROR(VLOOKUP(A4,'Gruber Tabelle'!$A$8:$W$405,2,0),"") -> 0 | F4: =IFERROR(VLOOKUP(A4,'Gruber Tabelle'!$A$8:$W$404,3,0),"") -> 0 | G4: =IFERROR(VLOOKUP(A4,'Gruber Tabelle'!$A$8:$W$404,4,0),"") -> 0 | H4: =IFERROR(VLOOKUP(A4,'Gruber Tabelle'!$A$8:$W$404,5,0),"") -> 0 | I4: =IFERROR(VLOOKUP(A4,'Gruber Tabelle'!$A$8:$W$404,7,0),"") -> 0 | J4: =IFERROR(VLOOKUP(A4,'Gruber Tabelle'!$A$8:$W$404,8,0),"") -> 0 | K4: =IFERROR(VLOOKUP(A4,'Gruber Tabelle'!$A$8:$W$404,12,0),"") -> 0 | L4: =IFERROR(VLOOKUP(A4,'Gruber Tabelle'!$A$8:$W$404,11,0),"") -> 0 | M4: =IFERROR(VLOOKUP(A4,'Gruber Tabelle'!$A$8:$W$404,16,0),"") -> 0 | N4: =IFERROR(VLOOKUP(A4,'Gruber Tabelle'!$A$8:$W$404,17,0),"") -> 0 | O4: =IFERROR(VLOOKUP(A4,'Gruber Tabelle'!$A$8:$W$404,18,0),"") -> 0 | P4: =IFERROR(VLOOKUP(A4,'Gruber Tabelle'!$A$8:$W$404,19,0),"") -> 0 | Q4: =IFERROR(VLOOKUP(A4,'Gruber Tabelle'!$A$8:$W$404,20,0),"") -> 0 | R4: =IFERROR(VLOOKUP(A4,'Gruber Tabelle'!$A$8:$W$404,21,0),"") -> 0 | S4: =IFERROR(VLOOKUP(A4,'Gruber Tabelle'!$A$8:$W$404,22,0),"") -> 0 | T4: =IFERROR(VLOOKUP(A4,'Gruber Tabelle'!$A$8:$W$404,23,0),"") -> 0
B5: =IFERROR(VLOOKUP(A5,'Gruber Tabelle'!$A$8:$W$405,2,0),"") -> 0 | F5: =IFERROR(VLOOKUP(A5,'Gruber Tabelle'!$A$8:$W$404,3,0),"") -> 0 | G5: =IFERROR(VLOOKUP(A5,'Gruber Tabelle'!$A$8:$W$404,4,0),"") -> 0 | H5: =IFERROR(VLOOKUP(A5,'Gruber Tabelle'!$A$8:$W$404,5,0),"") -> 0 | I5: =IFERROR(VLOOKUP(A5,'Gruber Tabelle'!$A$8:$W$404,7,0),"") -> 0 | J5: =IFERROR(VLOOKUP(A5,'Gruber Tabelle'!$A$8:$W$404,8,0),"") -> 0 | K5: =IFERROR(VLOOKUP(A5,'Gruber Tabelle'!$A$8:$W$404,12,0),"") -> 0 | L5: =IFERROR(VLOOKUP(A5,'Gruber Tabelle'!$A$8:$W$404,11,0),"") -> 0 | M5: =IFERROR(VLOOKUP(A5,'Gruber Tabelle'!$A$8:$W$404,16,0),"") -> 0 | N5: =IFERROR(VLOOKUP(A5,'Gruber Tabelle'!$A$8:$W$404,17,0),"") -> 0 | O5: =IFERROR(VLOOKUP(A5,'Gruber Tabelle'!$A$8:$W$404,18,0),"") -> 0 | P5: =IFERROR(VLOOKUP(A5,'Gruber Tabelle'!$A$8:$W$404,19,0),"") -> 0 | Q5: =IFERROR(VLOOKUP(A5,'Gruber Tabelle'!$A$8:$W$404,20,0),"") -> 0 | R5: =IFERROR(VLOOKUP(A5,'Gruber Tabelle'!$A$8:$W$404,21,0),"") -> 0 | S5: =IFERROR(VLOOKUP(A5,'Gruber Tabelle'!$A$8:$W$404,22,0),"") -> 0 | T5: =IFERROR(VLOOKUP(A5,'Gruber Tabelle'!$A$8:$W$404,23,0),"") -> 0
B6: =IFERROR(VLOOKUP(A6,'Gruber Tabelle'!$A$8:$W$405,2,0),"") -> 0 | F6: =IFERROR(VLOOKUP(A6,'Gruber Tabelle'!$A$8:$W$404,3,0),"") -> 0 | G6: =IFERROR(VLOOKUP(A6,'Gruber Tabelle'!$A$8:$W$404,4,0),"") -> 0 | H6: =IFERROR(VLOOKUP(A6,'Gruber Tabelle'!$A$8:$W$404,5,0),"") -> 0 | I6: =IFERROR(VLOOKUP(A6,'Gruber Tabelle'!$A$8:$W$404,7,0),"") -> 0 | J6: =IFERROR(VLOOKUP(A6,'Gruber Tabelle'!$A$8:$W$404,8,0),"") -> 0 | K6: =IFERROR(VLOOKUP(A6,'Gruber Tabelle'!$A$8:$W$404,12,0),"") -> 0 | L6: =IFERROR(VLOOKUP(A6,'Gruber Tabelle'!$A$8:$W$404,11,0),"") -> 0 | M6: =IFERROR(VLOOKUP(A6,'Gruber Tabelle'!$A$8:$W$404,16,0),"") -> 0 | N6: =IFERROR(VLOOKUP(A6,'Gruber Tabelle'!$A$8:$W$404,17,0),"") -> 0 | O6: =IFERROR(VLOOKUP(A6,'Gruber Tabelle'!$A$8:$W$404,18,0),"") -> 0 | P6: =IFERROR(VLOOKUP(A6,'Gruber Tabelle'!$A$8:$W$404,19,0),"") -> 0 | Q6: =IFERROR(VLOOKUP(A6,'Gruber Tabelle'!$A$8:$W$404,20,0),"") -> 0 | R6: =IFERROR(VLOOKUP(A6,'Gruber Tabelle'!$A$8:$W$404,21,0),"") -> 0 | S6: =IFERROR(VLOOKUP(A6,'Gruber Tabelle'!$A$8:$W$404,22,0),"") -> 0 | T6: =IFERROR(VLOOKUP(A6,'Gruber Tabelle'!$A$8:$W$404,23,0),"") -> 0
B7: =IFERROR(VLOOKUP(A7,'Gruber Tabelle'!$A$8:$W$405,2,0),"") -> 0 | F7: =IFERROR(VLOOKUP(A7,'Gruber Tabelle'!$A$8:$W$404,3,0),"") -> 0 | G7: =IFERROR(VLOOKUP(A7,'Gruber Tabelle'!$A$8:$W$404,4,0),"") -> 0 | H7: =IFERROR(VLOOKUP(A7,'Gruber Tabelle'!$A$8:$W$404,5,0),"") -> 0 | I7: =IFERROR(VLOOKUP(A7,'Gruber Tabelle'!$A$8:$W$404,7,0),"") -> 0 | J7: =IFERROR(VLOOKUP(A7,'Gruber Tabelle'!$A$8:$W$404,8,0),"") -> 0 | K7: =IFERROR(VLOOKUP(A7,'Gruber Tabelle'!$A$8:$W$404,12,0),"") -> 0 | L7: =IFERROR(VLOOKUP(A7,'Gruber Tabelle'!$A$8:$W$404,11,0),"") -> 0 | M7: =IFERROR(VLOOKUP(A7,'Gruber Tabelle'!$A$8:$W$404,16,0),"") -> 0 | N7: =IFERROR(VLOOKUP(A7,'Gruber Tabelle'!$A$8:$W$404,17,0),"") -> 0 | O7: =IFERROR(VLOOKUP(A7,'Gruber Tabelle'!$A$8:$W$404,18,0),"") -> 0 | P7: =IFERROR(VLOOKUP(A7,'Gruber Tabelle'!$A$8:$W$404,19,0),"") -> 0 | Q7: =IFERROR(VLOOKUP(A7,'Gruber Tabelle'!$A$8:$W$404,20,0),"") -> 0 | R7: =IFERROR(VLOOKUP(A7,'Gruber Tabelle'!$A$8:$W$404,21,0),"") -> 0 | S7: =IFERROR(VLOOKUP(A7,'Gruber Tabelle'!$A$8:$W$404,22,0),"") -> 0 | T7: =IFERROR(VLOOKUP(A7,'Gruber Tabelle'!$A$8:$W$404,23,0),"") -> 0
B8: =IFERROR(VLOOKUP(A8,'Gruber Tabelle'!$A$8:$W$405,2,0),"") -> 0 | F8: =IFERROR(VLOOKUP(A8,'Gruber Tabelle'!$A$8:$W$404,3,0),"") -> 0 | G8: =IFERROR(VLOOKUP(A8,'Gruber Tabelle'!$A$8:$W$404,4,0),"") -> 0 | H8: =IFERROR(VLOOKUP(A8,'Gruber Tabelle'!$A$8:$W$404,5,0),"") -> 0 | I8: =IFERROR(VLOOKUP(A8,'Gruber Tabelle'!$A$8:$W$404,7,0),"") -> 0 | J8: =IFERROR(VLOOKUP(A8,'Gruber Tabelle'!$A$8:$W$404,8,0),"") -> 0 | K8: =IFERROR(VLOOKUP(A8,'Gruber Tabelle'!$A$8:$W$404,12,0),"") -> 0 | L8: =IFERROR(VLOOKUP(A8,'Gruber Tabelle'!$A$8:$W$404,11,0),"") -> 0 | M8: =IFERROR(VLOOKUP(A8,'Gruber Tabelle'!$A$8:$W$404,16,0),"") -> 0 | N8: =IFERROR(VLOOKUP(A8,'Gruber Tabelle'!$A$8:$W$404,17,0),"") -> 0 | O8: =IFERROR(VLOOKUP(A8,'Gruber Tabelle'!$A$8:$W$404,18,0),"") -> 0 | P8: =IFERROR(VLOOKUP(A8,'Gruber Tabelle'!$A$8:$W$404,19,0),"") -> 0 | Q8: =IFERROR(VLOOKUP(A8,'Gruber Tabelle'!$A$8:$W$404,20,0),"") -> 0 | R8: =IFERROR(VLOOKUP(A8,'Gruber Tabelle'!$A$8:$W$404,21,0),"") -> 0 | S8: =IFERROR(VLOOKUP(A8,'Gruber Tabelle'!$A$8:$W$404,22,0),"") -> 0 | T8: =IFERROR(VLOOKUP(A8,'Gruber Tabelle'!$A$8:$W$404,23,0),"") -> 0
B9: =IFERROR(VLOOKUP(A9,'Gruber Tabelle'!$A$8:$W$405,2,0),"") -> 0 | F9: =IFERROR(VLOOKUP(A9,'Gruber Tabelle'!$A$8:$W$404,3,0),"") -> 0 | G9: =IFERROR(VLOOKUP(A9,'Gruber Tabelle'!$A$8:$W$404,4,0),"") -> 0 | H9: =IFERROR(VLOOKUP(A9,'Gruber Tabelle'!$A$8:$W$404,5,0),"") -> 0 | I9: =IFERROR(VLOOKUP(A9,'Gruber Tabelle'!$A$8:$W$404,7,0),"") -> 0 | J9: =IFERROR(VLOOKUP(A9,'Gruber Tabelle'!$A$8:$W$404,8,0),"") -> 0 | K9: =IFERROR(VLOOKUP(A9,'Gruber Tabelle'!$A$8:$W$404,12,0),"") -> 0 | L9: =IFERROR(VLOOKUP(A9,'Gruber Tabelle'!$A$8:$W$404,11,0),"") -> 0 | M9: =IFERROR(VLOOKUP(A9,'Gruber Tabelle'!$A$8:$W$404,16,0),"") -> 0 | N9: =IFERROR(VLOOKUP(A9,'Gruber Tabelle'!$A$8:$W$404,17,0),"") -> 0 | O9: =IFERROR(VLOOKUP(A9,'Gruber Tabelle'!$A$8:$W$404,18,0),"") -> 0 | P9: =IFERROR(VLOOKUP(A9,'Gruber Tabelle'!$A$8:$W$404,19,0),"") -> 0 | Q9: =IFERROR(VLOOKUP(A9,'Gruber Tabelle'!$A$8:$W$404,20,0),"") -> 0 | R9: =IFERROR(VLOOKUP(A9,'Gruber Tabelle'!$A$8:$W$404,21,0),"") -> 0 | S9: =IFERROR(VLOOKUP(A9,'Gruber Tabelle'!$A$8:$W$404,22,0),"") -> 0 | T9: =IFERROR(VLOOKUP(A9,'Gruber Tabelle'!$A$8:$W$404,23,0),"") -> 0
B10: =IFERROR(VLOOKUP(A10,'Gruber Tabelle'!$A$8:$W$405,2,0),"") -> 0 | F10: =IFERROR(VLOOKUP(A10,'Gruber Tabelle'!$A$8:$W$404,3,0),"") -> 0 | G10: =IFERROR(VLOOKUP(A10,'Gruber Tabelle'!$A$8:$W$404,4,0),"") -> 0 | H10: =IFERROR(VLOOKUP(A10,'Gruber Tabelle'!$A$8:$W$404,5,0),"") -> 0 | I10: =IFERROR(VLOOKUP(A10,'Gruber Tabelle'!$A$8:$W$404,7,0),"") -> 0 | J10: =IFERROR(VLOOKUP(A10,'Gruber Tabelle'!$A$8:$W$404,8,0),"") -> 0 | K10: =IFERROR(VLOOKUP(A10,'Gruber Tabelle'!$A$8:$W$404,12,0),"") -> 0 | L10: =IFERROR(VLOOKUP(A10,'Gruber Tabelle'!$A$8:$W$404,11,0),"") -> 0 | M10: =IFERROR(VLOOKUP(A10,'Gruber Tabelle'!$A$8:$W$404,16,0),"") -> 0 | N10: =IFERROR(VLOOKUP(A10,'Gruber Tabelle'!$A$8:$W$404,17,0),"") -> 0 | O10: =IFERROR(VLOOKUP(A10,'Gruber Tabelle'!$A$8:$W$404,18,0),"") -> 0 | P10: =IFERROR(VLOOKUP(A10,'Gruber Tabelle'!$A$8:$W$404,19,0),"") -> 0 | Q10: =IFERROR(VLOOKUP(A10,'Gruber Tabelle'!$A$8:$W$404,20,0),"") -> 0 | R10: =IFERROR(VLOOKUP(A10,'Gruber Tabelle'!$A$8:$W$404,21,0),"") -> 0 | S10: =IFERROR(VLOOKUP(A10,'Gruber Tabelle'!$A$8:$W$404,22,0),"") -> 0 | T10: =IFERROR(VLOOKUP(A10,'Gruber Tabelle'!$A$8:$W$404,23,0),"") -> 0
B11: =IFERROR(VLOOKUP(A11,'Gruber Tabelle'!$A$8:$W$405,2,0),"") -> 0 | F11: =IFERROR(VLOOKUP(A11,'Gruber Tabelle'!$A$8:$W$404,3,0),"") -> 0 | G11: =IFERROR(VLOOKUP(A11,'Gruber Tabelle'!$A$8:$W$404,4,0),"") -> 0 | H11: =IFERROR(VLOOKUP(A11,'Gruber Tabelle'!$A$8:$W$404,5,0),"") -> 0 | I11: =IFERROR(VLOOKUP(A11,'Gruber Tabelle'!$A$8:$W$404,7,0),"") -> 0 | J11: =IFERROR(VLOOKUP(A11,'Gruber Tabelle'!$A$8:$W$404,8,0),"") -> 0 | K11: =IFERROR(VLOOKUP(A11,'Gruber Tabelle'!$A$8:$W$404,12,0),"") -> 0 | L11: =IFERROR(VLOOKUP(A11,'Gruber Tabelle'!$A$8:$W$404,11,0),"") -> 0 | M11: =IFERROR(VLOOKUP(A11,'Gruber Tabelle'!$A$8:$W$404,16,0),"") -> 0 | N11: =IFERROR(VLOOKUP(A11,'Gruber Tabelle'!$A$8:$W$404,17,0),"") -> 0 | O11: =IFERROR(VLOOKUP(A11,'Gruber Tabelle'!$A$8:$W$404,18,0),"") -> 0 | P11: =IFERROR(VLOOKUP(A11,'Gruber Tabelle'!$A$8:$W$404,19,0),"") -> 0 | Q11: =IFERROR(VLOOKUP(A11,'Gruber Tabelle'!$A$8:$W$404,20,0),"") -> 0 | R11: =IFERROR(VLOOKUP(A11,'Gruber Tabelle'!$A$8:$W$404,21,0),"") -> 0 | S11: =IFERROR(VLOOKUP(A11,'Gruber Tabelle'!$A$8:$W$404,22,0),"") -> 0 | T11: =IFERROR(VLOOKUP(A11,'Gruber Tabelle'!$A$8:$W$404,23,0),"") -> 0
B12: =IFERROR(VLOOKUP(A12,'Gruber Tabelle'!$A$8:$W$405,2,0),"") -> 0 | F12: =IFERROR(VLOOKUP(A12,'Gruber Tabelle'!$A$8:$W$404,3,0),"") -> 0 | G12: =IFERROR(VLOOKUP(A12,'Gruber Tabelle'!$A$8:$W$404,4,0),"") -> 0 | H12: =IFERROR(VLOOKUP(A12,'Gruber Tabelle'!$A$8:$W$404,5,0),"") -> 0 | I12: =IFERROR(VLOOKUP(A12,'Gruber Tabelle'!$A$8:$W$404,7,0),"") -> 0 | J12: =IFERROR(VLOOKUP(A12,'Gruber Tabelle'!$A$8:$W$404,8,0),"") -> 0 | K12: =IFERROR(VLOOKUP(A12,'Gruber Tabelle'!$A$8:$W$404,12,0),"") -> 0 | L12: =IFERROR(VLOOKUP(A12,'Gruber Tabelle'!$A$8:$W$404,11,0),"") -> 0 | M12: =IFERROR(VLOOKUP(A12,'Gruber Tabelle'!$A$8:$W$404,16,0),"") -> 0 | N12: =IFERROR(VLOOKUP(A12,'Gruber Tabelle'!$A$8:$W$404,17,0),"") -> 0 | O12: =IFERROR(VLOOKUP(A12,'Gruber Tabelle'!$A$8:$W$404,18,0),"") -> 0 | P12: =IFERROR(VLOOKUP(A12,'Gruber Tabelle'!$A$8:$W$404,19,0),"") -> 0 | Q12: =IFERROR(VLOOKUP(A12,'Gruber Tabelle'!$A$8:$W$404,20,0),"") -> 0 | R12: =IFERROR(VLOOKUP(A12,'Gruber Tabelle'!$A$8:$W$404,21,0),"") -> 0 | S12: =IFERROR(VLOOKUP(A12,'Gruber Tabelle'!$A$8:$W$404,22,0),"") -> 0 | T12: =IFERROR(VLOOKUP(A12,'Gruber Tabelle'!$A$8:$W$404,23,0),"") -> 0
B13: =IFERROR(VLOOKUP(A13,'Gruber Tabelle'!$A$8:$W$405,2,0),"") -> 0 | F13: =IFERROR(VLOOKUP(A13,'Gruber Tabelle'!$A$8:$W$404,3,0),"") -> 0 | G13: =IFERROR(VLOOKUP(A13,'Gruber Tabelle'!$A$8:$W$404,4,0),"") -> 0 | H13: =IFERROR(VLOOKUP(A13,'Gruber Tabelle'!$A$8:$W$404,5,0),"") -> 0 | I13: =IFERROR(VLOOKUP(A13,'Gruber Tabelle'!$A$8:$W$404,7,0),"") -> 0 | J13: =IFERROR(VLOOKUP(A13,'Gruber Tabelle'!$A$8:$W$404,8,0),"") -> 0 | K13: =IFERROR(VLOOKUP(A13,'Gruber Tabelle'!$A$8:$W$404,12,0),"") -> 0 | L13: =IFERROR(VLOOKUP(A13,'Gruber Tabelle'!$A$8:$W$404,11,0),"") -> 0 | M13: =IFERROR(VLOOKUP(A13,'Gruber Tabelle'!$A$8:$W$404,16,0),"") -> 0 | N13: =IFERROR(VLOOKUP(A13,'Gruber Tabelle'!$A$8:$W$404,17,0),"") -> 0 | O13: =IFERROR(VLOOKUP(A13,'Gruber Tabelle'!$A$8:$W$404,18,0),"") -> 0 | P13: =IFERROR(VLOOKUP(A13,'Gruber Tabelle'!$A$8:$W$404,19,0),"") -> 0 | Q13: =IFERROR(VLOOKUP(A13,'Gruber Tabelle'!$A$8:$W$404,20,0),"") -> 0 | R13: =IFERROR(VLOOKUP(A13,'Gruber Tabelle'!$A$8:$W$404,21,0),"") -> 0 | S13: =IFERROR(VLOOKUP(A13,'Gruber Tabelle'!$A$8:$W$404,22,0),"") -> 0 | T13: =IFERROR(VLOOKUP(A13,'Gruber Tabelle'!$A$8:$W$404,23,0),"") -> 0
A14: Nr | B14: Futterart | C14: Mischungs- Anteil in % | D14: TM % | E14: FM kg | F14: TM g | G14: XF g | H14: aNDFom g | I14: XP g | J14: nXP g | K14: ME Mj | L14: NEL Mj | M14: Ca | N14: P | O14: Mg | P14: Na | Q14: K | R14: Cl | S14: S | T14: Preis
A15: =A4 -> 0 | B15: 0 | D15: =IFERROR(VLOOKUP(A4,'Gruber Tabelle'!$A$5:$T$405,3,0)/1000,"") -> 0 | E15: =IF(D15>0,1*C15," ") ->  | F15: =IF(C15>0,F4*C15," ") ->  | G15: =IFERROR(IF(G4>0,(G4*C15)*D15," "),"") ->  | H15: =IFERROR(IF(H4>0,(H4*C15)*D15," "),"") ->  | I15: =IFERROR(IF(I4>0,(I4*C15)*D15," "),"") ->  | J15: =IFERROR(IF(J4>0,(J4*C15)*D15," "),"") ->  | K15: =IFERROR(IF(K4>0,(K4*C15)*D15," "),"") ->  | L15: =IFERROR(IF(L4>0,(L4*C15)*D15," "),"") ->  | M15: =IFERROR(IF(M4>0,(M4*C15)*D15," "),"") ->  | N15: =IFERROR(IF(N4>0,(N4*C15)*D15," "),"") ->  | O15: =IFERROR(IF(O4>0,(O4*C15)*D15," "),"") ->  | P15: =IFERROR(IF(P4>0,(P4*C15)*D15," "),"") ->  | Q15: =IFERROR(IF(Q4>0,(Q4*C15)*D15," "),"") ->  | R15: =IFERROR(IF(R4>0,(R4*C15)*D15," "),"") ->  | S15: =IFERROR(IF(S4>0,(S4*C15)*D15," "),"") ->  | T15: =IFERROR(IF(C15>0,T4*E15/100,0),"") -> 0
A16: 0 | B16: 0 | D16: =IFERROR(VLOOKUP(A5,'Gruber Tabelle'!$A$5:$T$405,3,0)/1000,"") -> 0 | E16: =IF(D16>0,1*C16," ") ->  | F16: =IF(C16>0,F5*C16," ") ->  | G16: =IFERROR(IF(G5>0,(G5*C16)*D16," "),"") ->  | H16: =IFERROR(IF(H5>0,(H5*C16)*D16," "),"") ->  | I16: =IFERROR(IF(I5>0,(I5*C16)*D16," "),"") ->  | J16: =IFERROR(IF(J5>0,(J5*C16)*D16," "),"") ->  | K16: =IFERROR(IF(K5>0,(K5*C16)*D16," "),"") ->  | L16: =IFERROR(IF(L5>0,(L5*C16)*D16," "),"") ->  | M16: =IFERROR(IF(M5>0,(M5*C16)*D16," "),"") ->  | N16: =IFERROR(IF(N5>0,(N5*C16)*D16," "),"") ->  | O16: =IFERROR(IF(O5>0,(O5*C16)*D16," "),"") ->  | P16: =IFERROR(IF(P5>0,(P5*C16)*D16," "),"") ->  | Q16: =IFERROR(IF(Q5>0,(Q5*C16)*D16," "),"") ->  | R16: =IFERROR(IF(R5>0,(R5*C16)*D16," "),"") ->  | S16: =IFERROR(IF(S5>0,(S5*C16)*D16," "),"") ->  | T16: =IFERROR(IF(C16>0,T5*E16/100,0),"") -> 0
A17: 0 | B17: 0 | D17: =IFERROR(VLOOKUP(A6,'Gruber Tabelle'!$A$5:$T$405,3,0)/1000,"") -> 0 | T17: 0
A18: 0 | B18: 0 | D18: =IFERROR(VLOOKUP(A7,'Gruber Tabelle'!$A$5:$T$405,3,0)/1000,"") -> 0 | T18: 0
A19: 0 | B19: 0 | D19: =IFERROR(VLOOKUP(A8,'Gruber Tabelle'!$A$5:$T$405,3,0)/1000,"") -> 0 | T19: 0
A20: 0 | B20: 0 | D20: =IFERROR(VLOOKUP(A9,'Gruber Tabelle'!$A$5:$T$405,3,0)/1000,"") -> 0 | T20: 0
A21: 0 | B21: 0 | D21: =IFERROR(VLOOKUP(A10,'Gruber Tabelle'!$A$5:$T$405,3,0)/1000,"") -> 0 | T21: 0
A22: 0 | B22: 0 | D22: =IFERROR(VLOOKUP(A11,'Gruber Tabelle'!$A$5:$T$405,3,0)/1000,"") -> 0 | T22: 0
A23: 0 | B23: 0 | D23: =IFERROR(VLOOKUP(A12,'Gruber Tabelle'!$A$5:$T$405,3,0)/1000,"") -> 0 | T23: 0
A24: 0 | B24: 0 | D24: =IFERROR(VLOOKUP(A13,'Gruber Tabelle'!$A$5:$T$405,3,0)/1000,"") -> 0 | T24: 0
A25: FM | B25: Summe: | C25: =SUM(C15:C24) -> 0 | E25: =SUM(E15:E24) -> 0 | F25: 0 | G25: 0 | H25: 0 | I25: 0 | J25: 0 | K25: 0 | L25: 0 | M25: 0 | N25: 0 | O25: 0 | P25: 0 | Q25: 0 | R25: 0 | S25: 0 | T25: 0

Sheet Gruber Tabelle
A1: Ration
C2: www.LfL.bayern.de | H2: Gruber Tabelle zur Fütterung der Milchkühe – Zuchtrinder – Mastrinder – Schafe – Ziegen
C3: TM | D3: in 1000 g Trockenmasse ( TM ) | W3: Preis | X3: Typ
D4: XF | E4: aNDF | F4: ADF | G4: XP | H4: nXP | I4: UDP | J4: RNB | K4: NEL | L4: ME | M4: XS+XZ | N4: bXS | O4: XL | P4: Ca | Q4: P | R4: Mg | S4: Na | T4: K | U4: Cl | V4: S | W4: FM
C5: g | D5: g | E5: om g | F5: om g | G5: g | H5: g | I5: % | J5: g | K5: MJ | L5: MJ | M5: g | N5: g | O5: g | P5: g | Q5: g | R5: g | S5: g | T5: g | U5: g | V5: g | W5: € / dt
B6: 10.1 Grünfutter | J6: =(G6-H6)/6.25 -> 0
B7: Wiesengras 1. Schnitt | J7: 0
A8: 1013 | B8: Blattstadium | C8: 150 | D8: 170 | E8: 380 | F8: 204 | G8: 215 | H8: 152 | I8: 10 | J8: 10.08 | K8: 7.06 | L8: 11.52 | M8: 100 | O8: 38 | P8: 5.5 | Q8: 3.6 | R8: 2 | S8: 1.3 | T8: 26 | U8: 7 | V8: 2.2 | X8: GF
A9: 1014 | B9: Schossen | C9: 160 | D9: 205 | E9: 430 | F9: 224 | G9: 195 | H9: 144 | I9: 10 | J9: 8.16 | K9: 6.7 | L9: 11.05 | M9: 100 | O9: 39 | P9: 5.5 | Q9: 3.6 | R9: 2 | S9: 1.3 | T9: 26 | U9: 7 | V9: 2.2 | X9: GF
A10: 1015 | B10: Rispenschieben | C10: 180 | D10: 240 | E10: 490 | F10: 272 | G10: 175 | H10: 142 | I10: 15 | J10: 5.28 | K10: 6.33 | L10: 10.55 | M10: 100 | O10: 35 | P10: 5.5 | Q10: 3.6 | R10: 2.1 | S10: 0.7 | T10: 26 | U10: 9 | V10: 2.2 | W10: 0 | X10: GF
A11: 1016 | B11: Beginn Blüte | C11: 200 | D11: 278 | E11: 550 | F11: 291 | G11: 155 | H11: 133 | I11: 15 | J11: 3.52 | K11: 5.93 | L11: 9.99 | M11: 70 | O11: 31 | P11: 4.8 | Q11: 3.5 | R11: 1.9 | S11: 0.7 | T11: 27 | U11: 10.5 | V11: 2.2 | W11: 0 | X11: GF
A12: 1017 | B12: Ende Blüte | C12: 220 | D12: 312 | E12: 600 | F12: 306 | G12: 140 | H12: 127 | I12: 15 | J12: 2.08 | K12: 5.67 | L12: 9.63 | M12: 60 | O12: 29 | P12: 3.8 | Q12: 3.3 | R12: 1.8 | S12: 0.7 | T12: 27 | U12: 4 | V12: 1.3 | W12: 0 | X12: GF
A13: 1018 | J13: 0 | X13: GF
B14: Wiesengras 2. u. folg. Schnitte | J14: 0
A15: 1023 | B15: Blattstadium | C15: 160 | D15: 165 | E15: 380 | F15: 221 | G15: 235 | H15: 149 | I15: 10 | J15: 13.76 | K15: 6.74 | L15: 11.12 | M15: 100 | O15: 37 | P15: 11 | Q15: 4 | R15: 3.5 | S15: 0.6 | T15: 26 | U15: 5 | V15: 2 | X15: GF
A16: 1024 | B16: Schossen | C16: 170 | D16: 205 | E16: 435 | F16: 245 | G16: 180 | H16: 136 | I16: 10 | J16: 7.04 | K16: 6.28 | L16: 10.47 | M16: 100 | O16: 38 | P16: 10 | Q16: 3.1 | R16: 3.2 | S16: 0.8 | T16: 23 | U16: 5 | V16: 2.5 | X16: GF
A17: 1025 | B17: Rispenschieben | C17: 180 | D17: 240 | E17: 490 | F17: 259 | G17: 172 | H17: 137 | I17: 15 | J17: 5.6 | K17: 6.02 | L17: 10.11 | M17: 100 | O17: 35 | P17: 8.1 | Q17: 3.5 | R17: 2.8 | S17: 0.9 | T17: 24 | U17: 5 | V17: 1.8 | X17: GF
A18: 1026 | B18: Beginn Blüte | C18: 200 | D18: 275 | E18: 545 | F18: 281 | G18: 150 | H18: 130 | I18: 15 | J18: 3.2 | K18: 5.78 | L18: 9.78 | M18: 100 | O18: 32 | P18: 6.2 | Q18: 3.6 | R18: 2.2 | S18: 0.9 | T18: 24 | U18: 5 | V18: 2.4 | X18: GF
A19: 1027 | J19: 0 | X19: GF
B20: Rotklee 1. Schnitt | J20: 0
A21: 1614 | B21: vor der Knospe | C21: 150 | D21: 192 | E21: 420 | F21: 245 | G21: 210 | H21: 155 | I21: 20 | J21: 8.8 | K21: 6.37 | L21: 10.57 | M21: 70 | O21: 40 | P21: 16 | Q21: 2.9 | R21: 3.6 | S21: 0.4 | T21: 32 | U21: 6 | V21: 2.6 | X21: GF
A22: 1615 | B22: in der Knospe | C22: 180 | D22: 240 | E22: 490 | F22: 285 | G22: 180 | H22: 142 | I22: 20 | J22: 6.08 | K22: 5.89 | L22: 9.91 | M22: 80 | O22: 35 | P22: 15 | Q22: 2.5 | R22: 3.6 | S22: 0.4 | T22: 24 | U22: 6 | V22: 2.5 | X22: GF
A23: 1616 | B23: Mitte der Blüte | C23: 200 | D23: 282 | E23: 555 | F23: 325 | G23: 160 | H23: 131 | I23: 20 | J23: 4.64 | K23: 5.47 | L23: 9.31 | M23: 80 | O23: 29 | P23: 13 | Q23: 2.5 | R23: 3.6 | S23: 0.3 | T23: 22 | U23: 6 | V23: 2.5 | X23: GF
A24: 1617 | J24: 0 | X24: GF
B25: Rotklee 2. u. folg. Schnitte | J25: 0
A26: 1624 | B26: vor der Knospe | C26: 140 | D26: 201 | E26: 430 | F26: 255 | G26: 219 | H26: 152 | I26: 20 | J26: 10.72 | K26: 6.03 | L26: 10.11 | M26: 80 | O26: 38 | P26: 17 | Q26: 2.8 | R26: 3.6 | S26: 1.4 | T26: 24 | U26: 7.6 | V26: 1.8 | X26: GF
A27: 1625 | B27: in der Knospe | C27: 160 | D27: 238 | E27: 485 | F27: 285 | G27: 190 | H27: 140 | I27: 20 | J27: 8 | K27: 5.65 | L27: 9.59 | M27: 70 | O27: 34 | P27: 17 | Q27: 3 | R27: 4 | S27: 1.5 | T27: 29 | U27: 5.4 | V27: 3.7 | X27: GF
A28: 1626 | B28: Mitte der Blüte | C28: 180 | D28: 274 | E28: 540 | F28: 315 | G28: 165 | H28: 130 | I28: 20 | J28: 5.6 | K28: 5.31 | L28: 9.11 | M28: 80 | O28: 33 | P28: 15 | Q28: 3 | R28: 3 | S28: 1.2 | T28: 28 | U28: 5 | V28: 2 | X28: GF
A29: 1627 | J29: 0 | X29: GF
B30: Kleegras 1. Schnitt | J30: 0
A31: 1633 | B31: vor der Knospe | C31: 150 | D31: 185 | E31: 405 | F31: 240 | G31: 230 | H31: 156 | I31: 15 | J31: 11.84 | K31: 6.73 | L31: 11.05 | M31: 80 | O31: 34 | P31: 13 | Q31: 4.5 | R31: 2.4 | S31: 0.3 | T31: 36 | U31: 5 | V31: 2 | X31: GF
A32: 1634 | B32: in der Knospe | C32: 160 | D32: 222 | E32: 460 | F32: 270 | G32: 215 | H32: 149 | I32: 15 | J32: 10.56 | K32: 6.37 | L32: 10.58 | M32: 80 | O32: 31 | P32: 10 | Q32: 4.4 | R32: 2.3 | S32: 0.5 | T32: 35 | U32: 5 | V32: 2 | X32: GF
A33: 1636 | B33: Mitte der Blüte | C33: 200 | D33: 295 | E33: 575 | F33: 335 | G33: 170 | H33: 136 | I33: 20 | J33: 5.44 | K33: 5.63 | L33: 9.56 | M33: 80 | O33: 26 | P33: 7 | Q33: 3.5 | R33: 2 | S33: 0.3 | T33: 30 | U33: 4 | V33: 2 | X33: GF
A34: 1637 | J34: 0 | X34: GF
B35: Kleegras 2. u. folg. Schnitte | J35: 0
A36: 1644 | B36: vor der Knospe | C36: 160 | D36: 205 | E36: 430 | F36: 255 | G36: 215 | H36: 146 | I36: 15 | J36: 11.04 | K36: 6.18 | L36: 10.32 | M36: 70 | O36: 33 | P36: 12 | Q36: 4.1 | R36: 3.1 | S36: 0.7 | T36: 35 | U36: 2 | V36: 2 | X36: GF
A37: 1645 | B37: Knospe | C37: 170 | D37: 240 | E37: 490 | F37: 285 | G37: 205 | H37: 140 | I37: 15 | J37: 10.4 | K37: 5.9 | L37: 9.94 | M37: 70 | O37: 32 | P37: 11 | Q37: 3.8 | R37: 2.5 | S37: 0.4 | T37: 33 | U37: 2 | V37: 2 | X37: GF
A38: 1646 | B38: Mitte der Blüte | C38: 180 | D38: 280 | E38: 550 | F38: 320 | G38: 170 | H38: 134 | I38: 20 | J38: 5.76 | K38: 5.47 | L38: 9.33 | M38: 70 | O38: 31 | P38: 8 | Q38: 4 | R38: 2 | S38: 0.3 | T38: 35 | U38: 5 | V38: 2 | X38: GF
A39: 1647 | J39: 0 | X39: GF
A40: 1655 | B40: Jurakleegras 1.Schn.Beg.Blü. | C40: 170 | D40: 245 | E40: 500 | F40: 290 | G40: 185 | H40: 139 | I40: 15 | J40: 7.36 | K40: 6.03 | L40: 10.1 | M40: 50 | O40: 30 | P40: 10 | Q40: 3.7 | R40: 1.9 | S40: 0.8 | T40: 35 | U40: 6 | V40: 2 | X40: GF
A41: 1656 | J41: 0 | X41: GF
B42: Luzerne 1.Schnitt | J42: 0
A43: 1714 | B43: Knospe | C43: 180 | D43: 228 | E43: 470 | F43: 275 | G43: 216 | H43: 139 | I43: 15 | J43: 12.32 | K43: 5.74 | L43: 9.69 | M43: 15 | O43: 31 | P43: 18 | Q43: 3 | R43: 3.2 | S43: 0.5 | T43: 30 | U43: 6 | V43: 4.6 | X43: GF
A44: 1715 | B44: Beginn Blüte | C44: 200 | D44: 276 | E44: 545 | F44: 315 | G44: 188 | H44: 137 | I44: 20 | J44: 8.16 | K44: 5.45 | L44: 9.31 | M44: 25 | O44: 30 | P44: 20 | Q44: 2.8 | R44: 2.7 | S44: 1 | T44: 26 | U44: 6.7 | V44: 4.5 | X44: GF
A45: 1716 | B45: Ende Blüte | C45: 210 | D45: 325 | E45: 620 | F45: 360 | G45: 169 | H45: 132 | I45: 25 | J45: 5.92 | K45: 5 | L45: 8.66 | M45: 54 | O45: 28 | P45: 17 | Q45: 2.7 | R45: 2.5 | S45: 1 | T45: 28 | U45: 6 | V45: 3 | X45: GF
A46: 1717 | J46: 0 | X46: GF
B47: Luzerne 2. u. folg. Schnitte | J47: 0
A48: 1724 | B48: Knospe | C48: 180 | D48: 231 | E48: 475 | F48: 280 | G48: 222 | H48: 141 | I48: 15 | J48: 12.96 | K48: 5.79 | L48: 9.8 | M48: 40 | O48: 40 | P48: 18 | Q48: 3.1 | R48: 2.8 | S48: 0.5 | T48: 28 | U48: 3 | V48: 2 | X48: GF
A49: 1725 | B49: Beginn Blüte | C49: 200 | D49: 277 | E49: 545 | F49: 320 | G49: 198 | H49: 139 | I49: 20 | J49: 9.44 | K49: 5.44 | L49: 9.31 | M49: 35 | O49: 31 | P49: 18 | Q49: 2.8 | R49: 2.7 | S49: 0.7 | T49: 24 | U49: 3.6 | V49: 3.3 | X49: GF
A50: 1726 | B50: Ende Blüte | C50: 200 | D50: 331 | E50: 625 | F50: 365 | G50: 189 | H50: 130 | I50: 20 | J50: 9.44 | K50: 4.97 | L50: 8.65 | M50: 35 | O50: 31 | P50: 16 | Q50: 2.4 | R50: 2.2 | S50: 0.4 | T50: 21 | U50: 4 | V50: 3 | X50: GF
A51: 1727 | J51: 0 | X51: GF
B52: Luzernegras 1. Schnitt | J52: 0
A53: 1734 | B53: vor der Knospe | C53: 150 | D53: 225 | E53: 455 | F53: 265 | G53: 205 | H53: 144 | I53: 15 | J53: 9.76 | K53: 6.17 | L53: 10.31 | M53: 9 | O53: 35 | P53: 9 | Q53: 3.5 | R53: 2.2 | S53: 0.3 | T53: 34 | U53: 2 | V53: 2 | X53: GF
A54: 1735 | B54: Knospe | C54: 170 | D54: 265 | E54: 515 | F54: 300 | G54: 180 | H54: 135 | I54: 15 | J54: 7.2 | K54: 5.83 | L54: 9.85 | M54: 29 | O54: 32 | P54: 9 | Q54: 3.3 | R54: 2.1 | S54: 0.3 | T54: 30 | U54: 2 | V54: 2 | X54: GF
A55: 1736 | B55: Mitte der Blüte | C55: 200 | D55: 305 | E55: 590 | F55: 345 | G55: 160 | H55: 125 | I55: 15 | J55: 5.6 | K55: 5.39 | L55: 9.21 | M55: 70 | O55: 28 | P55: 7 | Q55: 3.2 | R55: 2 | S55: 0.3 | T55: 30 | U55: 2 | V55: 2 | X55: GF
A56: 1737 | J56: 0 | X56: GF
B57: Luzernegras 2. u. folg. Schnitte | J57: 0
A58: 1744 | B58: vor der Knospe | C58: 170 | D58: 225 | E58: 460 | F58: 270 | G58: 215 | H58: 142 | I58: 15 | J58: 11.68 | K58: 5.92 | L58: 9.95 | M58: 9 | O58: 36 | P58: 12 | Q58: 3.7 | R58: 2 | S58: 0.3 | T58: 35 | U58: 2 | V58: 2.5 | X58: GF
A59: 1745 | B59: Knospe | C59: 180 | D59: 260 | E59: 520 | F59: 305 | G59: 195 | H59: 136 | I59: 15 | J59: 9.44 | K59: 5.7 | L59: 9.67 | M59: 29 | O59: 34 | P59: 12 | Q59: 3.4 | R59: 2.5 | S59: 0.3 | T59: 32 | U59: 2 | V59: 2 | X59: GF
A60: 1746 | B60: Mitte der Blüte | C60: 200 | D60: 300 | E60: 580 | F60: 340 | G60: 180 | H60: 128 | I60: 15 | J60: 8.32 | K60: 5.39 | L60: 9.23 | M60: 70 | O60: 32 | P60: 11 | Q60: 3.2 | R60: 2.1 | S60: 0.3 | T60: 30 | U60: 2 | V60: 2 | X60: GF
A61: 1747 | J61: 0 | X61: GF
A62: 1665 | B62: Alexandrinerklee gr. Beg. Blüte | C62: 125 | D62: 237 | E62: 485 | F62: 285 | G62: 200 | H62: 149 | I62: 25 | J62: 8.16 | K62: 5.65 | L62: 9.56 | M62: 80 | O62: 43 | P62: 16 | Q62: 3.9 | R62: 3.2 | S62: 1.3 | T62: 33 | U62: 6 | V62: 2 | X62: GF
A63: 1685 | B63: Perserklee | C63: 118 | D63: 218 | E63: 455 | F63: 265 | G63: 203 | H63: 143 | I63: 20 | J63: 9.6 | K63: 5.71 | L63: 9.6 | M63: 80 | O63: 24 | P63: 16 | Q63: 3.5 | R63: 2 | S63: 1.4 | T63: 28 | U63: 6 | V63: 2 | X63: GF
B64: Weidelgras 1. Schnitt | J64: 0
A65: 1814 | B65: Schossen | C65: 150 | D65: 200 | E65: 425 | F65: 222 | G65: 195 | H65: 151 | I65: 15 | J65: 7.04 | K65: 6.77 | L65: 11.11 | M65: 150 | O65: 41 | P65: 6 | Q65: 3.5 | R65: 1.6 | S65: 1.8 | T65: 27 | U65: 6 | V65: 1.5 | X65: GF
A66: 1815 | B66: Ährenschieben | C66: 170 | D66: 235 | E66: 490 | F66: 241 | G66: 165 | H66: 140 | I66: 15 | J66: 4 | K66: 6.33 | L66: 10.5 | M66: 150 | O66: 37 | P66: 5 | Q66: 3.2 | R66: 1.6 | S66: 2.5 | T66: 19 | U66: 6 | V66: 2 | X66: GF
A67: 1816 | B67: Beginn Blüte | C67: 180 | D67: 290 | E67: 550 | F67: 300 | G67: 125 | H67: 123 | I67: 15 | J67: 0.32 | K67: 5.63 | L67: 9.53 | M67: 150 | O67: 31 | P67: 4.5 | Q67: 2.1 | R67: 1.5 | S67: 1.5 | T67: 12 | U67: 6 | V67: 2 | X67: GF
A68: 1817 | J68: 0 | X68: GF
B69: Weidelgras 2. u. folg. Schnitte | J69: 0
A70: 1824 | B70: Schossen | C70: 160 | D70: 200 | E70: 430 | F70: 236 | G70: 195 | H70: 141 | I70: 15 | J70: =(G70-H70)/6.25 -> 8.64 | K70: 6.09 | L70: 10.16 | M70: 150 | O70: 33 | P70: 6 | Q70: 3.7 | R70: 2.1 | S70: 1.3 | T70: 31 | U70: 5 | V70: 2 | X70: GF
A71: 1825 | B71: Ährenschieben | C71: 170 | D71: 240 | E71: 500 | F71: 265 | G71: 175 | H71: 135 | I71: 15 | J71: 6.4 | K71: 5.88 | L71: 9.9 | M71: 150 | O71: 36 | P71: 5.5 | Q71: 3.5 | R71: 2 | S71: 1.3 | T71: 28 | U71: 5 | V71: 2 | X71: GF
A72: 1826 | B72: Beginn Blüte | C72: 180 | D72: 285 | E72: 560 | F72: 279 | G72: 140 | H72: 125 | I72: 15 | J72: 2.4 | K72: 5.56 | L72: 9.45 | M72: 150 | O72: 27 | P72: 5 | Q72: 3 | R72: 1.5 | S72: 1.3 | T72: 25 | U72: 5 | V72: 2 | X72: GF
A73: 1827 | J73: 0 | X73: GF
A74: 1865 | B74: Landsb.Gemenge Beg.Ähren. | C74: 170 | D74: 220 | E74: 460 | F74: 270 | G74: 194 | H74: 140 | I74: 15 | J74: 8.64 | K74: 6.01 | L74: 10.09 | M74: 80 | O74: 30 | P74: 8.5 | Q74: 3 | R74: 1.8 | S74: 0.5 | T74: 27 | U74: 5 | V74: 2 | X74: GF
A75: 1866 | B75: Landsb.Gemenge Beg.Blüte | C75: 190 | D75: 271 | E75: 535 | F75: 315 | G75: 161 | H75: 127 | I75: 15 | J75: 5.44 | K75: 5.52 | L75: 9.38 | M75: 80 | O75: 28 | P75: 6 | Q75: 3 | R75: 1.6 | S75: 0.5 | T75: 25 | U75: 5 | V75: 2 | X75: GF
A76: 1867 | J76: 0 | X76: GF
A77: 1125 | B77: Gerste im Ährenschieben | C77: 240 | D77: 260 | E77: 520 | F77: 305 | G77: 143 | H77: 146 | I77: 20 | J77: -0.48 | K77: 6.65 | L77: 11 | M77: 197 | N77: 10 | O77: 47 | P77: 3.3 | Q77: 2.9 | R77: 1.5 | S77: 0.2 | T77: 18 | U77: 9 | V77: 2 | X77: GF
B78: Grünhafer | J78: 0
A79: 1144 | J79: 0 | X79: GF
A80: 1145 | B80: Rispenschieben | C80: 220 | D80: 260 | E80: 520 | F80: 305 | G80: 142 | H80: 135 | I80: 15 | J80: 1.12 | K80: 6.26 | L80: 10.4 | M80: 150 | O80: 31 | P80: 3.9 | Q80: 4.2 | R80: 1.7 | S80: 1.7 | T80: 28 | U80: 9 | V80: 2 | X80: GF
A81: 1146 | J81: 0 | X81: GF
A82: 1164 | B82: Grünroggen im Schossen | C82: 220 | D82: 230 | E82: 460 | F82: 270 | G82: 185 | H82: 152 | I82: 15 | J82: 5.28 | K82: 6.94 | L82: 11.33 | M82: 120 | O82: 41 | P82: 7.5 | Q82: 6.6 | R82: 1.6 | S82: 1 | T82: 28 | U82: 9 | V82: 2 | X82: GF
A83: 1165 | B83: Grünroggen im Ährenschieben | C83: 220 | D83: 285 | E83: 555 | F83: 325 | G83: 150 | H83: 138 | I83: 15 | J83: 1.92 | K83: 6.34 | L83: 10.53 | M83: 120 | O83: 35 | P83: 3.4 | Q83: 4.3 | R83: 1.3 | S83: 0.5 | T83: 28 | U83: 9 | V83: 2 | X83: GF
A84: 1166 | J84: 0 | X84: GF
A85: 1305 | B85: Ackerbohnen | C85: 180 | D85: 306 | E85: 590 | F85: 345 | G85: 174 | H85: 121 | I85: 10 | J85: 8.48 | K85: 5.34 | L85: 9.19 | M85: 40 | O85: 33 | P85: 15.5 | Q85: 3.5 | R85: 3.3 | S85: 2 | T85: 23 | U85: 2 | V85: 2 | X85: GF
B86: Hülsenfruchtgemenge | J86: 0
A87: 1314 | B87: Knospe | C87: 120 | D87: 217 | E87: 455 | F87: 265 | G87: 204 | H87: 141 | I87: 15 | J87: 10.08 | K87: 6 | L87: 10.03 | M87: 40 | O87: 40 | P87: 7 | Q87: 4 | R87: 1.8 | S87: 0.4 | T87: 30 | U87: 2 | V87: 2 | X87: GF
A88: 1315 | B88: Beginn der Blüte | C88: 140 | D88: 260 | E88: 510 | F88: 300 | G88: 180 | H88: 133 | I88: 15 | J88: 7.52 | K88: 5.72 | L88: 9.67 | M88: 40 | O88: 33 | P88: 7 | Q88: 4 | R88: 1.8 | S88: 0.4 | T88: 30 | U88: 2 | V88: 3 | X88: GF
A89: 1316 | B89: Ende der Blüte | C89: 200 | D89: 300 | E89: 610 | F89: 355 | G89: 160 | H89: 124 | I89: 15 | J89: 5.76 | K89: 5.28 | L89: 9.06 | M89: 40 | O89: 30 | P89: 7 | Q89: 4 | R89: 2 | S89: 0.3 | T89: 28 | U89: 2 | V89: 2 | X89: GF
A90: 1317 | J90: 0 | X90: GF
B91: Erbs-Wick-Gemenge | J91: 0
A92: 1334 | B92: Knospe | C92: 120 | D92: 205 | E92: 425 | F92: 250 | G92: 200 | H92: 146 | I92: 15 | J92: 8.64 | K92: 6.36 | L92: 10.54 | M92: 40 | O92: 40 | P92: 9.5 | Q92: 5 | R92: 2.3 | S92: 0.3 | T92: 30 | U92: 2 | V92: 3 | X92: GF
A93: 1335 | B93: Beginn der Blüte | C93: 150 | D93: 245 | E93: 490 | F93: 285 | G93: 175 | H93: 138 | I93: 15 | J93: 5.92 | K93: 6.06 | L93: 10.15 | M93: 40 | O93: 33 | P93: 11 | Q93: 4.6 | R93: 2.6 | S93: 0.5 | T93: 30 | U93: 2 | V93: 2 | X93: GF
A94: 1336 | B94: Ende der Blüte | C94: 180 | D94: 280 | E94: 550 | F94: 320 | G94: 165 | H94: 130 | I94: 15 | J94: 5.6 | K94: 5.64 | L94: 9.57 | M94: 40 | O94: 30 | P94: 8 | Q94: 4 | R94: 1.4 | S94: 0.3 | T94: 30 | U94: 2 | V94: 2 | X94: GF
A95: 1337 | J95: 0 | X95: GF
A96: 1355 | B96: Hülsenfr.-Sonnenbl.gem. | C96: 180 | D96: 250 | E96: 515 | F96: 300 | G96: 160 | H96: 133 | I96: 15 | J96: 4.32 | K96: 5.89 | L96: 9.93 | M96: 30 | O96: 38 | P96: 12 | Q96: 3 | R96: 2.2 | S96: 0.3 | T96: 28 | U96: 1.6 | V96: 2.3 | X96: GF
A97: 1455 | B97: Sonnenblumen Beg. Blüte | C97: 180 | D97: 220 | E97: 450 | F97: 260 | G97: 135 | H97: 122 | I97: 15 | J97: 2.08 | K97: 5.45 | L97: 9.23 | M97: 126 | O97: 25 | P97: 14 | Q97: 4.4 | R97: 2.3 | S97: 0 | T97: 30 | U97: 9 | V97: 4 | X97: GF
A98: 1424 | B98: Raps jung, blattreich | C98: 120 | D98: 130 | E98: 315 | F98: 185 | G98: 210 | H98: 153 | I98: 15 | J98: 9.12 | K98: 6.76 | L98: 11.02 | M98: 110 | O98: 37 | P98: 17 | Q98: 4.5 | R98: 2.6 | S98: 1.3 | T98: 32 | U98: 11 | V98: 7 | X98: GF
A99: 1425 | B99: Raps alt, stengelreich | C99: 140 | D99: 160 | E99: 375 | F99: 220 | G99: 190 | H99: 143 | I99: 15 | J99: 7.52 | K99: 6.31 | L99: 10.39 | M99: 80 | O99: 38 | P99: 19 | Q99: 5 | R99: 2.6 | S99: 1.4 | T99: 32 | U99: 11 | V99: 7 | X99: GF
A100: 1435 | B100: Perko | C100: 100 | D100: 127 | E100: 320 | F100: 190 | G100: 216 | H100: 145 | I100: 15 | J100: 11.36 | K100: 6.27 | L100: 10.23 | M100: 110 | O100: 38 | P100: 13 | Q100: 6 | R100: 1.2 | S100: 1.1 | T100: 30 | U100: 9 | V100: 4 | X100: GF
A101: 1436 | J101: 0 | X101: GF
A102: 1444 | B102: Rübsen jung, blattreich | C102: 110 | D102: 107 | E102: 290 | F102: 170 | G102: 180 | H102: 148 | I102: 15 | J102: 5.12 | K102: 6.84 | L102: 11.02 | M102: 90 | O102: 42 | P102: 16 | Q102: 3.6 | R102: 2.4 | S102: 0.9 | T102: 30 | U102: 9 | V102: 4 | X102: GF
A103: 1445 | B103: Rübsen alt, stengelreich | C103: 120 | D103: 146 | E103: 350 | F103: 205 | G103: 189 | H103: 146 | I103: 15 | J103: 6.88 | K103: 6.62 | L103: 10.74 | M103: 70 | O103: 37 | P103: 16 | Q103: 4.6 | R103: 2.7 | S103: 1.4 | T103: 30 | U103: 9 | V103: 4 | X103: GF
A104: 1465 | B104: Senf vor der Blüte | C104: 140 | D104: 210 | E104: 430 | F104: 250 | G104: 215 | H104: 138 | I104: 15 | J104: 12.32 | K104: 5.74 | L104: 9.62 | M104: 110 | O104: 26 | P104: 15.5 | Q104: 4 | R104: 3.4 | S104: 0 | T104: 25 | U104: 9 | V104: 4 | X104: GF
A105: 1505 | B105: Zuckerrübenblatt | C105: 160 | D105: 109 | E105: 295 | F105: 175 | G105: 160 | H105: 139 | I105: 15 | J105: 3.36 | K105: 6.44 | L105: 10.46 | M105: 220 | O105: 21 | P105: 12.4 | Q105: 2.5 | R105: 4.8 | S105: 9.5 | T105: 35 | U105: 15 | V105: 5.2 | X105: GF
A106: 1555 | B106: Futterrübenblatt | C106: 120 | D106: 114 | E106: 300 | F106: 180 | G106: 138 | H106: 126 | I106: 15 | J106: 1.92 | K106: 5.86 | L106: 9.63 | M106: 100 | O106: 22 | P106: 20 | Q106: 2.5 | R106: 6.1 | S106: 6.1 | T106: 45 | U106: 13.3 | V106: 6.2 | X106: GF
A107: 1885 | B107: Sudangras/Zuckerhirse grün | C107: 200 | D107: 280 | E107: 600 | F107: 350 | G107: 105 | H107: 116 | I107: 15 | J107: -1.76 | K107: 5.36 | L107: 9.13 | M107: 60 | O107: 27 | P107: 5 | Q107: 2 | R107: 4 | S107: 0.8 | T107: 25 | U107: 4 | V107: 1.5 | X107: GF
B108: Grünmais | J108: 0
A109: 1203 | B109: Kolbenbildung | C109: 240 | D109: 265 | E109: 460 | F109: 300 | G109: 85 | H109: 130 | I109: 25 | J109: -7.2 | K109: 6.35 | L109: 10.54 | M109: 210 | N109: 9 | O109: 23 | P109: 2.8 | Q109: 2.6 | R109: 1.5 | S109: 0.2 | T109: 15 | U109: 1 | V109: 1 | X109: GF
A110: 1204 | B110: Milchreife | C110: 260 | D110: 230 | E110: 410 | F110: 275 | G110: 82 | H110: 132 | I110: 25 | J110: -8 | K110: 6.54 | L110: 10.8 | M110: 260 | N110: 28 | O110: 23 | P110: 2.2 | Q110: 2.4 | R110: 1.2 | S110: 0.3 | T110: 12 | U110: 1.2 | V110: 1 | X110: GF
A111: 1205 | B111: Teigreife | C111: 300 | D111: 205 | E111: 413 | F111: 260 | G111: 81 | H111: 135 | I111: 25 | J111: -8.64 | K111: 6.77 | L111: 11.13 | M111: 320 | N111: 46 | O111: 30 | P111: 2.1 | Q111: 2.3 | R111: 1.3 | S111: 0.3 | T111: 12 | U111: 1.2 | V111: 1 | X111: GF
A112: 1206 | B112: Wachsreife | C112: 340 | D112: 180 | E112: 390 | F112: 235 | G112: 80 | H112: 135 | I112: 25 | J112: -8.8 | K112: 6.83 | L112: 11.21 | M112: 390 | N112: 69 | O112: 28 | P112: 1.9 | Q112: 2.6 | R112: 1.3 | S112: 0.4 | T112: 12 | U112: 1.2 | V112: 1 | X112: GF
B113: 10.2 Silagen | J113: 0
B114: Grassilage angewelkt 1. Schnitt | J114: 0
A115: 2013 | B115: Beginn Schossen | C115: 350 | D115: 192 | E115: 410 | F115: 225 | G115: 190 | H115: 149 | I115: 15 | J115: 6.56 | K115: 6.65 | L115: 10.95 | M115: 40 | O115: 40 | P115: 7 | Q115: 4 | R115: 2.5 | S115: 0.6 | T115: 30 | U115: 5.5 | V115: 2.2 | X115: GF
A116: 2014 | B116: Beginn Rispenschieben | C116: 350 | D116: 224 | E116: 465 | F116: 251 | G116: 180 | H116: 143 | I116: 15 | J116: 5.92 | K116: 6.36 | L116: 10.57 | M116: 25 | O116: 40 | P116: 6.5 | Q116: 4 | R116: 2.4 | S116: 0.7 | T116: 31 | U116: 7 | V116: 2.2 | W116: 0 | X116: GF
A117: 2015 | B117: Rispenspreizen | C117: 350 | D117: 256 | E117: 515 | F117: 281 | G117: 165 | H117: 136 | I117: 15 | J117: 4.64 | K117: 6.04 | L117: 10.12 | M117: 15 | O117: 38 | P117: 6.3 | Q117: 3.8 | R117: 2.3 | S117: 0.8 | T117: 30 | U117: 7 | V117: 2.2 | X117: GF
A118: 2016 | B118: Mitte der Blüte | C118: 350 | D118: 295 | E118: 570 | F118: 307 | G118: 145 | H118: 128 | I118: 15 | J118: 2.72 | K118: 5.71 | L118: 9.66 | M118: 10 | O118: 36 | P118: 5.8 | Q118: 3.7 | R118: 2.2 | S118: 0.8 | T118: 29 | U118: 8 | V118: 2.2 | X118: GF
A119: 2017 | J119: 0 | X119: GF
A120: 2018 | J120: 0 | X120: GF
B121: Grassilage angew. 2. u. f. Schnitte | J121: 0
A122: 2024 | B122: Beginn Schossen | C122: 350 | D122: 190 | E122: 410 | F122: 247 | G122: 188 | H122: 141 | I122: 15 | J122: 7.52 | K122: 6.2 | L122: 10.29 | M122: 20 | O122: 42 | P122: 9 | Q122: 3.8 | R122: 3.2 | S122: 1 | T122: 27 | U122: 6 | V122: 2.2 | X122: GF
A123: 2025 | B123: Beginn Rispenschieben | C123: 350 | D123: 225 | E123: 460 | F123: 272 | G123: 174 | H123: 136 | I123: 15 | J123: 6.08 | K123: 5.96 | L123: 10.01 | M123: 20 | O123: 40 | P123: 8.5 | Q123: 3.7 | R123: 3.1 | S123: 1 | T123: 25 | U123: 7 | V123: 2.4 | X123: GF
A124: 2026 | B124: Rispenspreizen | C124: 350 | D124: 258 | E124: 510 | F124: 296 | G124: 160 | H124: 129 | I124: 15 | J124: 4.96 | K124: 5.66 | L124: 9.6 | M124: 15 | O124: 37 | P124: 7.5 | Q124: 3.6 | R124: 2.7 | S124: 1 | T124: 25 | U124: 7 | V124: 2.3 | X124: GF
A125: 2027 | J125: 0 | X125: GF
B126: Kleegrassilage 1. Schnitt | J126: 0
A127: 2634 | B127: Beginn Knospe | C127: 350 | D127: 225 | E127: 455 | F127: 265 | G127: 195 | H127: 144 | I127: 15 | J127: 8.16 | K127: 6.3 | L127: 10.48 | M127: 25 | O127: 38 | P127: 8 | Q127: 3.8 | R127: 2.4 | S127: 0.5 | T127: 33 | U127: 6 | V127: 2 | X127: GF
A128: 2635 | B128: Knospenöffnen | C128: 350 | D128: 260 | E128: 520 | F128: 305 | G128: 175 | H128: 135 | I128: 15 | J128: 6.4 | K128: 5.91 | L128: 9.94 | M128: 20 | O128: 38 | P128: 7.9 | Q128: 3.7 | R128: 2.3 | S128: 0.6 | T128: 33 | U128: 6 | V128: 2 | X128: GF
A129: 2636 | B129: Mitte der Blüte | C129: 350 | D129: 300 | E129: 585 | F129: 340 | G129: 154 | H129: 132 | I129: 20 | J129: 3.52 | K129: 5.59 | L129: 9.51 | M129: 10 | O129: 40 | P129: 8 | Q129: 3.7 | R129: 2.2 | S129: 0.6 | T129: 30 | U129: 8 | V129: 2.5 | X129: GF
A130: 2637 | J130: 0 | X130: GF
B131: Kleegrassilage 2.u.folg. Schnitt | J131: 0
A132: 2644 | B132: vor der Knospe | C132: 350 | D132: 210 | E132: 430 | F132: 250 | G132: 190 | H132: 138 | I132: 15 | J132: 8.32 | K132: 5.98 | L132: 10 | M132: 20 | O132: 40 | P132: 7 | Q132: 4.3 | R132: 2.8 | S132: 0.8 | T132: 30 | U132: 6 | V132: 2 | X132: GF
A133: 2645 | B133: in der Knospe | C133: 350 | D133: 245 | E133: 490 | F133: 285 | G133: 180 | H133: 133 | I133: 15 | J133: 7.52 | K133: 5.68 | L133: 9.61 | M133: 20 | O133: 36 | P133: 8 | Q133: 3.7 | R133: 2.7 | S133: 0.8 | T133: 28 | U133: 6 | V133: 2 | X133: GF
A134: 2646 | B134: Beginn der Blüte | C134: 350 | D134: 282 | E134: 550 | F134: 320 | G134: 160 | H134: 124 | I134: 15 | J134: =(G134-H134)/6.25 -> 5.76 | K134: 5.28 | L134: 9.07 | M134: 15 | O134: 38 | P134: 8 | Q134: 3.5 | R134: 2.2 | S134: 0.6 | T134: 28 | U134: 6 | V134: 2 | X134: GF
A135: 2647 | J135: 0 | X135: GF
B136: Luzernesilage | J136: 0
A137: 2714 | B137: 1. Schnitt in der Knospe | C137: 350 | D137: 240 | E137: 485 | F137: 280 | G137: 190 | H137: 130 | I137: 15 | J137: 9.6 | K137: 5.45 | L137: 9.27 | M137: 20 | O137: 38 | P137: 12 | Q137: 3.7 | R137: 2.6 | S137: 0.5 | T137: 32 | U137: 3 | V137: 2 | X137: GF
A138: 2715 | B138: 1. Schnitt Beginn Blüte | C138: 350 | D138: 280 | E138: 550 | F138: 320 | G138: 175 | H138: 130 | I138: 20 | J138: 7.2 | K138: 5.15 | L138: 8.86 | M138: 15 | O138: 38 | P138: 13 | Q138: 3.5 | R138: 2.2 | S138: 0.5 | T138: 29 | U138: 3 | V138: 2 | X138: GF
A139: 2716 | B139: 1. Schnitt Ende der Blüte | C139: 350 | D139: 325 | E139: 620 | F139: 360 | G139: 165 | H139: 128 | I139: 25 | J139: 5.92 | K139: 4.81 | L139: 8.39 | M139: 15 | O139: 38 | P139: 12 | Q139: 3.1 | R139: 1.9 | S139: 0.5 | T139: 28 | U139: 3 | V139: 2 | X139: GF
A140: 2725 | B140: ab 2. Schnitt | C140: 250 | D140: 300 | E140: 570 | F140: 330 | G140: 178 | H140: 130 | I140: 20 | J140: 7.68 | K140: 5.1 | L140: 8.81 | M140: 15 | O140: 36 | P140: 12 | Q140: 3 | R140: 2.3 | S140: 0.3 | T140: 28 | U140: 3 | V140: 2 | X140: GF
B141: Luzernegrassilage | J141: 0
A142: 2734 | B142: 1. Schnitt Beginn Knospe | C142: 350 | D142: 220 | E142: 445 | F142: 260 | G142: 192 | H142: 138 | I142: 15 | J142: 8.64 | K142: 5.95 | L142: 9.95 | M142: 20 | O142: 27 | P142: 11 | Q142: 3.5 | R142: 2.8 | S142: 0.5 | T142: 30 | U142: 4 | V142: 2 | X142: GF
A143: 2735 | B143: 1. Schnitt Knospenöffnen | C143: 350 | D143: 265 | E143: 515 | F143: 300 | G143: 175 | H143: 129 | I143: 15 | J143: 7.36 | K143: 5.54 | L143: 9.39 | M143: 15 | O143: 29 | P143: 11 | Q143: 3.5 | R143: 2.8 | S143: 0.5 | T143: 30 | U143: 4 | V143: 2 | X143: GF
A144: 2736 | B144: 1. Schnitt in der Blüte | C144: 350 | D144: 300 | E144: 595 | F144: 345 | G144: 165 | H144: 124 | I144: 15 | J144: 6.56 | K144: 5.3 | L144: 9.06 | M144: 10 | O144: 31 | P144: 10 | Q144: 3.4 | R144: 2.3 | S144: 0.5 | T144: 30 | U144: 4 | V144: 2 | X144: GF
A145: 2745 | B145: ab 2. Schnitt | C145: 350 | D145: 290 | E145: 525 | F145: 305 | G145: 170 | H145: 125 | I145: 15 | J145: 7.2 | K145: 5.28 | L145: 9.05 | M145: 15 | O145: 35 | P145: 10 | Q145: 3.4 | R145: 2.3 | S145: 0.5 | T145: 27 | U145: 4 | V145: 2 | X145: GF
B146: Weidelgrassilage | J146: 0
A147: 2814 | B147: im Schossen | C147: 350 | D147: 200 | E147: 430 | F147: 219 | G147: 175 | H147: 143 | I147: 15 | J147: 5.12 | K147: 6.48 | L147: 10.6 | M147: 40 | O147: 40 | P147: 6 | Q147: 4.5 | R147: 2.1 | S147: 0.6 | T147: 35 | U147: 6 | V147: 2 | X147: GF
A148: 2815 | B148: im Ährenschieben | C148: 350 | D148: 250 | E148: 505 | F148: 264 | G148: 162 | H148: 136 | I148: 15 | J148: 4.16 | K148: 6.13 | L148: 10.21 | M148: 35 | O148: 50 | P148: 6 | Q148: 4.5 | R148: 2.1 | S148: 0.6 | T148: 35 | U148: 6 | V148: 2 | X148: GF
A149: 2816 | B149: in der Blüte | C149: 350 | D149: 300 | E149: 585 | F149: 320 | G149: 135 | H149: 125 | I149: 15 | J149: 1.6 | K149: 5.62 | L149: 9.54 | M149: 30 | O149: 47 | P149: 5 | Q149: 4 | R149: 1.6 | S149: 0.4 | T149: 34 | U149: 6 | V149: 2 | X149: GF
A150: 2817 | J150: 0 | X150: GF
A151: 2865 | B151: Landsb. Gem. Ährensch. | C151: 350 | D151: 260 | E151: 520 | F151: 305 | G151: 165 | H151: 130 | I151: 15 | J151: 5.6 | K151: 5.7 | L151: 9.6 | M151: 30 | O151: 31 | P151: 8.5 | Q151: 3 | R151: 1.8 | S151: 0.5 | T151: 30 | U151: 5 | V151: 2 | X151: GF
A152: 2866 | B152: Landsb. Gemenge Blüte | C152: 350 | D152: 305 | E152: 585 | F152: 340 | G152: 135 | H152: 126 | I152: 15 | J152: 1.44 | K152: 5.68 | L152: 9.65 | M152: 25 | O152: 45 | P152: 6 | Q152: 3 | R152: 1.6 | S152: 0.5 | T152: 28 | U152: 5 | V152: 2 | X152: GF
A153: 2424 | B153: Rapssilage jung, blattreich | C153: 150 | D153: 142 | E153: 340 | F153: 200 | G153: 195 | H153: 148 | I153: 15 | J153: 7.52 | K153: 6.69 | L153: 10.83 | M153: 5 | O153: 52 | P153: 17 | Q153: 4.5 | R153: 2.6 | S153: 1.3 | T153: 32 | U153: 11 | V153: 7 | X153: GF
A154: 2425 | B154: Rapssilage alt stängelreich | C154: 160 | D154: 180 | E154: 410 | F154: 240 | G154: 185 | H154: 147 | I154: 15 | J154: 6.08 | K154: 6.69 | L154: 10.87 | M154: 5 | O154: 52 | P154: 19 | Q154: 5 | R154: 2.6 | S154: 1.4 | T154: 32 | U154: 11 | V154: 7 | X154: GF
A155: 2445 | B155: Rübsensilage | C155: 150 | D155: 140 | E155: 335 | F155: 200 | G155: 130 | H155: 143 | I155: 15 | J155: -2.08 | K155: 7.01 | L155: 11.26 | M155: 5 | O155: 41 | P155: 16 | Q155: 4.6 | R155: 2.7 | S155: 1.4 | T155: 30 | U155: 9 | V155: 4 | X155: GF
A156: 2446 | J156: 0 | X156: GF
B157: Grünhafersilage | J157: 0
A158: 2144 | B158: Rispenschieben | C158: 350 | D158: 260 | E158: 525 | F158: 305 | G158: 112 | H158: 132 | I158: 15 | J158: -3.2 | K158: 6.34 | L158: 10.52 | M158: 2 | O158: 38 | P158: 5.7 | Q158: 4 | R158: 2 | S158: 1 | T158: 22 | U158: 6 | V158: 2 | X158: GF
A159: 2145 | B159: Mitte der Blüte | C159: 350 | D159: 295 | E159: 575 | F159: 335 | G159: 105 | H159: 124 | I159: 15 | J159: -3.04 | K159: 5.84 | L159: 9.84 | M159: 2 | O159: 38 | P159: 4 | Q159: 3 | R159: 1.6 | S159: 1 | T159: 20 | U159: 6 | V159: 2 | X159: GF
A160: 2146 | B160: abgeblüht | C160: 350 | D160: 340 | E160: 650 | F160: 380 | G160: 100 | H160: 117 | I160: 20 | J160: -2.72 | K160: 5.3 | L160: 9.09 | M160: 2 | O160: 36 | P160: 4 | Q160: 3 | R160: 1.6 | S160: 1 | T160: 20 | U160: 6 | V160: 2 | X160: GF
B161: Grünroggensilage | J161: 0
A162: 2164 | B162: Ährenschieben | C162: 250 | D162: 260 | E162: 530 | F162: 310 | G162: 150 | H162: 139 | I162: 15 | J162: 1.76 | K162: 6.42 | L162: 10.62 | M162: 2 | O162: 45 | P162: 4.5 | Q162: 4.2 | R162: 1.6 | S162: 0.4 | T162: 30 | U162: 6 | V162: 2 | X162: GF
A163: 2165 | B163: Mitte der Blüte | C163: 250 | D163: 298 | E163: 575 | F163: 335 | G163: 140 | H163: 133 | I163: 15 | J163: 1.12 | K163: 6.11 | L163: 10.21 | M163: 2 | O163: 37 | P163: 4.5 | Q163: 4.2 | R163: 1.6 | S163: 0.4 | T163: 30 | U163: 6 | V163: 2 | X163: GF
A164: 2166 | B164: abgeblüht | C164: 250 | D164: 340 | E164: 645 | F164: 375 | G164: 120 | H164: 125 | I164: 15 | J164: -0.8 | K164: 5.8 | L164: 9.79 | M164: 2 | O164: 38 | P164: 4.5 | Q164: 4.2 | R164: 1.6 | S164: 0.4 | T164: 30 | U164: 6 | V164: 2 | X164: GF
A165: 2167 | J165: 0 | X165: GF
B166: GPS Gerste/Weizen | J166: 0
A167: 2134 | B167: körnerarm | C167: 380 | D167: 283 | E167: 555 | F167: 325 | G167: 100 | H167: 113 | I167: 15 | J167: -2.08 | K167: 5.16 | L167: 8.91 | M167: 170 | N167: 15 | O167: 23 | P167: 4 | Q167: 2.8 | R167: 1.2 | S167: 0.4 | T167: 15 | U167: 2 | V167: 1.3 | X167: GF
A168: 2135 | B168: mittlerer Körneranteil | C168: 400 | D168: 245 | E168: 490 | F168: 285 | G168: 98 | H168: 117 | I168: 15 | J168: -3.04 | K168: 5.46 | L168: 9.32 | M168: 220 | N168: 20 | O168: 23 | P168: 2 | Q168: 2.5 | R168: 1 | S168: 0.3 | T168: 12 | U168: 1.6 | V168: 1.3 | X168: GF
A169: 2136 | B169: körnerreich | C169: 420 | D169: 215 | E169: 430 | F169: 255 | G169: 100 | H169: 121 | I169: 15 | J169: -3.36 | K169: 5.71 | L169: 9.66 | M169: 270 | N169: 25 | O169: 20 | P169: 2.6 | Q169: 2.8 | R169: 1.2 | S169: 0.4 | T169: 13 | U169: 3 | V169: 1.3 | X169: GF
A170: 2305 | B170: GPS Ackerbohnen | C170: 350 | D170: 280 | E170: 535 | F170: 310 | G170: 180 | H170: 133 | I170: 15 | J170: 7.52 | K170: 5.69 | L170: 9.67 | M170: 150 | N170: 24 | O170: 20 | P170: 10 | Q170: 3.6 | R170: 3.3 | S170: 2 | T170: 20 | U170: 8 | V170: 2 | X170: GF
A171: 2885 | B171: Zuckerhirse/Sudangras siliert | C171: 350 | D171: 310 | E171: 570 | F171: 330 | G171: 100 | H171: 113 | I171: 15 | J171: -2.08 | K171: 5.16 | L171: 8.91 | M171: 10 | O171: 32 | P171: 5 | Q171: 2 | R171: 4 | S171: 0.8 | T171: 25 | U171: 4 | V171: 1.3 | X171: GF
B172: Maissilage | J172: 0
A173: 2203 | B173: Kolbenbildung | C173: 190 | D173: 292 | E173: 590 | F173: 315 | G173: 100 | H173: 132 | I173: 25 | J173: -5.12 | K173: 6.22 | L173: 10.42 | M173: 62 | N173: 5 | O173: 34 | P173: 2.5 | Q173: 3 | R173: 1.7 | S173: 0.2 | T173: 13 | U173: 1 | V173: 1 | X173: GF
A174: 2204 | B174: Milchreife | C174: 240 | D174: 235 | E174: 540 | F174: 280 | G174: 90 | H174: 131 | I174: 25 | J174: -6.56 | K174: 6.34 | L174: 10.56 | M174: 190 | N174: 18 | O174: 30 | P174: 2.3 | Q174: 2.2 | R174: 1.3 | S174: 0.3 | T174: 12 | U174: 1 | V174: 1 | X174: GF
A175: 2205 | B175: Teigreife, mittl. Körneranteil | C175: 300 | D175: 205 | E175: 465 | F175: 260 | G175: 84 | H175: 133 | I175: 25 | J175: -7.84 | K175: 6.55 | L175: 10.85 | M175: 280 | N175: 41 | O175: 28 | P175: 2.1 | Q175: 2.2 | R175: 1.3 | S175: 0.3 | T175: 11 | U175: 1 | V175: 1 | X175: GF
A176: 2206 | B176: Wachsreife, mittl. Körnerant. | C176: 350 | D176: 195 | E176: 485 | F176: 250 | G176: 82 | H176: 134 | I176: 25 | J176: -8.32 | K176: 6.69 | L176: 11.04 | M176: 305 | N176: 44 | O176: 33 | P176: 2 | Q176: 2.2 | R176: 1.3 | S176: 0.3 | T176: 11 | U176: 1 | V176: 1 | W176: 0 | X176: GF
A177: 2215 | B177: Teigreife, körnerarm | C177: 280 | D177: 230 | E177: 520 | F177: 280 | G177: 84 | H177: 130 | I177: 25 | J177: -7.36 | K177: 6.36 | L177: 10.58 | M177: 230 | N177: 33 | O177: 28 | P177: 2.3 | Q177: 2.2 | R177: 1.4 | S177: 0.3 | T177: 12 | U177: 1 | V177: 1 | X177: GF
A178: 2216 | B178: Wachsreife, körnerarm | C178: 340 | D178: 220 | E178: 510 | F178: 270 | G178: 84 | H178: 132 | I178: 25 | J178: -7.68 | K178: 6.5 | L178: 10.79 | M178: 250 | N178: 36 | O178: 31 | P178: 2.3 | Q178: 2.2 | R178: 1.4 | S178: 0.3 | T178: 12 | U178: 1 | V178: 1 | X178: GF
A179: 2225 | B179: Teigreife, körnerreich | C179: 330 | D179: 185 | E179: 458 | F179: 245 | G179: 82 | H179: 136 | I179: 25 | J179: -8.64 | K179: 6.81 | L179: 11.2 | M179: 325 | N179: 47 | O179: 35 | P179: 2 | Q179: 2.2 | R179: 1.3 | S179: 0.3 | T179: 10 | U179: 1 | V179: 1 | X179: GF
A180: 2226 | B180: Wachsreife, körnerreich | C180: 360 | D180: 172 | E180: 440 | F180: 235 | G180: 82 | H180: 137 | I180: 25 | J180: -8.8 | K180: 6.94 | L180: 11.38 | M180: 345 | N180: 50 | O180: 36 | P180: 1.9 | Q180: 2.2 | R180: 1.2 | S180: 0.3 | T180: 9 | U180: 1 | V180: 1 | X180: GF
A181: 2227 | J181: 0 | X181: GF
A182: 2245 | B182: Maissilage Pflückhäcksel 2+4 | C182: 350 | D182: 170 | E182: 388 | F182: 225 | G182: 84 | H182: 140 | I182: 25 | J182: -8.96 | K182: 7.07 | L182: 11.54 | M182: 345 | N182: 50 | O182: 34 | P182: 1.8 | Q182: 2.3 | R182: 1.2 | S182: 0.3 | T182: 8 | U182: 1 | V182: 1 | X182: GF
A183: 2246 | B183: Maissilage Pflückhäcksel 2+2 | C183: 400 | D183: 155 | E183: 353 | F183: 215 | G183: 83 | H183: 142 | I183: 25 | J183: -9.44 | K183: 7.25 | L183: 11.79 | M183: 395 | N183: 57 | O183: 35 | P183: 1.6 | Q183: 2.4 | R183: 1.2 | S183: 0.3 | T183: 8 | U183: 1 | V183: 1 | X183: GF
A184: 2235 | B184: Lieschkolbensilage LKS | C184: 480 | D184: 140 | E184: 321 | F184: 215 | G184: 95 | H184: 149 | I184: 35 | J184: -8.64 | K184: 7.44 | L184: 12.05 | M184: 455 | N184: 68 | O184: 36 | P184: 1 | Q184: 2.5 | R184: 1.2 | S184: 0.3 | T184: 6 | U184: 1 | V184: 1 | X184: FF
A185: 5206 | B185: Maiskornsilage Schrot | C185: 650 | D185: 25 | E185: 170 | F185: 100 | G185: 100 | H185: 166 | I185: 40 | J185: -10.56 | K185: 8.65 | L185: 13.6 | M185: 655 | N185: 162 | O185: 42 | P185: 0.4 | Q185: 3.5 | R185: 1.3 | S185: 0.2 | T185: 4 | U185: 1 | V185: 1.5 | X185: FF
A186: 5225 | B186: CCM Kornspind.gem. | C186: 600 | D186: 53 | E186: 210 | F186: 125 | G186: 100 | H186: 158 | I186: 35 | J186: -9.28 | K186: 7.99 | L186: 12.78 | M186: 631 | N186: 156 | O186: 43 | P186: 0.4 | Q186: 3.5 | R186: 1.3 | S186: 0.2 | T186: 4 | U186: 1 | V186: 1.5 | X186: FF
A187: 2505 | B187: Zuckerrübenblattsilage | C187: 180 | D187: 145 | E187: 350 | F187: 205 | G187: 150 | H187: 130 | I187: 15 | J187: 3.2 | K187: 5.98 | L187: 9.83 | M187: 16 | O187: 32 | P187: 10 | Q187: 2.4 | R187: 4 | S187: 7 | T187: 27 | U187: 15 | V187: 5 | X187: GF
A188: 2555 | B188: Futterrübenblattsilage | C188: 180 | D188: 145 | E188: 335 | F188: 195 | G188: 145 | H188: 123 | I188: 15 | J188: 3.52 | K188: 5.57 | L188: 9.21 | M188: 20 | O188: 29 | P188: 20 | Q188: 2.4 | R188: 5 | S188: 3.5 | T188: 33 | U188: 13 | V188: 6 | X188: GF
B189: 10.3 Heu, Cobs, Grünmehl, Stroh | J189: 0
B190: Wiesenheu 1.Schnitt | J190: 0
A191: 3014 | B191: Rispenschieben | C191: 860 | D191: 245 | E191: 500 | F191: 261 | G191: 132 | H191: 135 | I191: 20 | J191: -0.48 | K191: 6.08 | L191: 10.16 | M191: 120 | O191: 30 | P191: 5.2 | Q191: 3.4 | R191: 2 | S191: 0.4 | T191: 25 | U191: 6 | V191: 2 | X191: GF
A192: 3015 | B192: Rispenspreizen | C192: 860 | D192: 282 | E192: 555 | F192: 296 | G192: 115 | H192: 125 | I192: 20 | J192: -1.6 | K192: 5.65 | L192: 9.59 | M192: 110 | O192: 30 | P192: 4.4 | Q192: 2.9 | R192: 1.8 | S192: 0.4 | T192: 22 | U192: 6 | V192: 2 | X192: GF
A193: 3016 | B193: Mitte der Blüte | C193: 860 | D193: 315 | E193: 605 | F193: 329 | G193: 98 | H193: 118 | I193: 25 | J193: -3.2 | K193: 5.27 | L193: 9.05 | M193: 105 | O193: 23 | P193: 4 | Q193: 2.5 | R193: 1.6 | S193: 0.4 | T193: 20 | U193: 6 | V193: 2 | W193: 0 | X193: GF
A194: 3017 | B194: abgeblüht | C194: 860 | D194: 350 | E194: 655 | F194: 361 | G194: 82 | H194: 107 | I194: 25 | J194: -4 | K194: 4.84 | L194: 8.43 | M194: 100 | O194: 20 | P194: 3.8 | Q194: 2 | R194: 1.5 | S194: 0.4 | T194: 16 | U194: 6 | V194: 2 | X194: GF
A195: 3018 | J195: 0 | X195: GF
B196: Wiesenheu 2. u. folg. Schnitte | J196: 0
A197: 3024 | B197: Schossen | C197: 860 | D197: 225 | E197: 470 | F197: 245 | G197: 155 | H197: 137 | I197: 20 | J197: 2.88 | K197: 5.92 | L197: 9.94 | M197: 120 | O197: 30 | P197: 7.2 | Q197: 3.5 | R197: 2.6 | S197: 0.4 | T197: 26 | U197: 6 | V197: 2 | X197: GF
A198: 3025 | B198: Rispenspreizen | C198: 860 | D198: 260 | E198: 520 | F198: 276 | G198: 140 | H198: 129 | I198: 20 | J198: =(G198-H198)/6.25 -> 1.76 | K198: 5.61 | L198: 9.53 | M198: 110 | O198: 28 | P198: 5.8 | Q198: 3.4 | R198: 2.1 | S198: 0.4 | T198: 24 | U198: 6 | V198: 2 | X198: GF
A199: 3026 | B199: Mitte der Blüte | C199: 860 | D199: 295 | E199: 575 | F199: 301 | G199: 120 | H199: 121 | I199: 20 | J199: -0.16 | K199: 5.31 | L199: 9.1 | M199: 100 | O199: 29 | P199: 4.5 | Q199: 2.9 | R199: 1.8 | S199: 0.6 | T199: 22 | U199: 6 | V199: 2 | X199: GF
B200: Heu U-Dachtr. 1. Schnitt | J200: 0
... 188 more rows

Sheet Mengenberechnung
A2: Basis – Ration für : | G2: Tiere
A3: Kenn Nr. | B3: Futtermittel | E3: kg.
A4: =Ration!A15 -> 0 | B4: =Ration!B15 -> 0 | E4: =Ration!D15*F2 -> 0 | F4: Gesamtgewicht Grundfutter und Kraftfutter pro Mischung in kg:
A5: =Ration!A16 -> 0 | B5: =Ration!B16 -> 0 | E5: =Ration!D16*F2 -> 0
A6: =Ration!A17 -> 0 | B6: =Ration!B17 -> 0 | E6: =Ration!D17*F2 -> 0
A7: =Ration!A18 -> 0 | B7: =Ration!B18 -> 0 | E7: =Ration!D18*F2 -> 0
A8: =Ration!A19 -> 0 | B8: =Ration!B19 -> 0 | E8: =Ration!D19*F2 -> 0
A9: =Ration!A20 -> 0 | B9: =Ration!B20 -> 0 | E9: =Ration!D20*F2 -> 0
A10: =Ration!A21 -> 0 | B10: =Ration!B21 -> 0 | E10: =Ration!D21*F2 -> 0
A11: =Ration!A22 -> 0 | B11: =Ration!B22 -> 0 | E11: =Ration!D22*F2 -> 0 | F11: =SUM(E4:E15) -> 0
A12: =Ration!A23 -> 0 | B12: =Ration!B23 -> 0 | E12: =Ration!D23*F2 -> 0
A13: =Ration!A24 -> 0 | B13: =Ration!B24 -> 0 | E13: =Ration!D24*F2 -> 0
A14: KF 1 | B14: Mischung 1 | E14: =Ration!D26*F2 -> 0
A15: KF 2 | B15: Mischung 2 | E15: =Ration!D27*F2 -> 0
A16: Kraftfutter – Mischung 1 Mischergröße: | G16: kg
A17: Kenn Nr. | B17: Futtermittel | E17: kg.
A18: ='Mischung 1'!A15 -> 0 | B18: ='Mischung 1'!B15 -> 0 | E18: =F16*'Mischung 1'!C15 -> 0 | F18: Tiere gesamt:
A19: ='Mischung 1'!A16 -> 0 | B19: ='Mischung 1'!B16 -> 0 | E19: =F16*'Mischung 1'!C16 -> 0 | F19: kg je Tier/Tag:
A20: ='Mischung 1'!A17 -> 0 | B20: ='Mischung 1'!B17 -> 0 | E20: =F16*'Mischung 1'!C17 -> 0 | F20: Die Mischung reicht für Tage :
A21: ='Mischung 1'!A18 -> 0 | B21: ='Mischung 1'!B18 -> 0 | E21: =F16*'Mischung 1'!C18 -> 0
A22: ='Mischung 1'!A19 -> 0 | B22: ='Mischung 1'!B19 -> 0 | E22: =F16*'Mischung 1'!C19 -> 0
A23: ='Mischung 1'!A20 -> 0 | B23: ='Mischung 1'!B20 -> 0 | E23: =F16*'Mischung 1'!C20 -> 0
A24: ='Mischung 1'!A21 -> 0 | B24: ='Mischung 1'!B21 -> 0 | E24: =F16*'Mischung 1'!C21 -> 0 | F24: =IF(G19>0,F16/(G18*G19)," ") -> 
A25: ='Mischung 1'!A22 -> 0 | B25: ='Mischung 1'!B22 -> 0 | E25: =F16*'Mischung 1'!C22 -> 0
A26: ='Mischung 1'!A23 -> 0 | B26: ='Mischung 1'!B23 -> 0 | E26: =F16*'Mischung 1'!C23 -> 0
A27: ='Mischung 1'!A24 -> 0 | B27: ='Mischung 1'!B24 -> 0 | E27: =F16*'Mischung 1'!C24 -> 0
A28: Kraftfutter – Mischung 2 Mischergröße: | G28: kg
A29: Kenn Nr. | B29: Futtermittel | E29: kg.
A30: ='Mischung 2'!A15 -> 0 | B30: ='Mischung 2'!B15 -> 0 | E30: =F28*'Mischung 2'!C15 -> 0 | F30: Tiere gesamt:
A31: ='Mischung 2'!A16 -> 0 | B31: ='Mischung 2'!B16 -> 0 | E31: =F28*'Mischung 2'!C16 -> 0 | F31: kg je Tier/Tag:
A32: ='Mischung 2'!A17 -> 0 | B32: ='Mischung 2'!B17 -> 0 | E32: =F28*'Mischung 2'!C17 -> 0 | F32: Die Mischung reicht für Tage :
A33: ='Mischung 2'!A18 -> 0 | B33: ='Mischung 2'!B18 -> 0 | E33: =F28*'Mischung 2'!C18 -> 0
A34: ='Mischung 2'!A19 -> 0 | B34: ='Mischung 2'!B19 -> 0 | E34: =F28*'Mischung 2'!C19 -> 0
A35: ='Mischung 2'!A20 -> 0 | B35: ='Mischung 2'!B20 -> 0 | E35: =F28*'Mischung 2'!C20 -> 0
A36: ='Mischung 2'!A21 -> 0 | B36: ='Mischung 2'!B21 -> 0 | E36: =F28*'Mischung 2'!C21 -> 0 | F36: =IF(G31>0,F28/(G30*G31)," ") -> 
A37: ='Mischung 2'!A22 -> 0 | B37: ='Mischung 2'!B22 -> 0 | E37: =F28*'Mischung 2'!C22 -> 0
A38: ='Mischung 2'!A23 -> 0 | B38: ='Mischung 2'!B23 -> 0 | E38: =F28*'Mischung 2'!C23 -> 0
A39: ='Mischung 2'!A24 -> 0 | B39: ='Mischung 2'!B24 -> 0 | E39: =F28*'Mischung 2'!C24 -> 0

Sheet Ausdruck
N1: Betriebs Nr. | P1: =Einstellung!D8 -> 091231234444 | T1: Kraftfutter - Mischung 1 | AA1: Betriebs Nr. | AC1: =Einstellung!D8 -> 091231234444 | AI1: Mengenliste für Futtermischer
A2: Betriebs Nr. | C2: =Einstellung!D8 -> 091231234444 | F2: Basis Ration | I2: =Ration!A2 -> 0 | N2: =Einstellung!C5 -> Tierhaltungsschule | Q2: =Einstellung!E5 -> Triesdorf | AA2: =Einstellung!C5 -> Tierhaltungsschule | AD2: =Einstellung!E5 -> Triesdorf
A3: =Einstellung!C5 -> Tierhaltungsschule | D3: =Einstellung!E5 -> Triesdorf | F3: kg Grundfutter und KF - FM ges. | K3: =Ration!D28 -> 0 | N3: =Einstellung!C6 -> Markgrafenstraße 1 | T3: Kraftfutter - Mischung 2 | AA3: =Einstellung!C6 -> Markgrafenstraße 1
A4: =Einstellung!C6 -> Markgrafenstraße 1 | F4: kg Grundfutter und KF - TM ges. | K4: =Ration!E28/1000 -> 0 | N4: =Einstellung!C7 -> 91746 | P4: =Einstellung!D7 -> Weidenbach | AA4: =Einstellung!C7 -> 91746 | AC4: =Einstellung!D7 -> Weidenbach
A5: =Einstellung!C7 -> 91746 | C5: =Einstellung!D7 -> Weidenbach | F5: KF 1 kg | I5: =Ration!D26 -> 0 | J5: KF 2 kg | M5: =Ration!D27 -> 0
AA6: Kraftfutter - Mischung 1 | AH6: Kraftfutter - Mischung 2
A7: FM | B7: Futtermittel | E7: XP g | F7: nXP g | G7: ME | H7: Ca g | I7: P g | J7: Mg g | K7: Na g | L7: K g | M7: Cl g | N7: % | O7: KF Mischung 1 | R7: nXP g | S7: ME | T7: Ca g | U7: P g | V7: Mg g | W7: Na g | X7: K g | Y7: Cl g | Z7: Preis | AB7: Mischergröße 1 | AE7: =Mengenberechnung!F16 -> 0 | AI7: Mischergröße 2 | AL7: =Mengenberechnung!F28 -> 0
A8: =Ration!D15 -> 0 | B8: =Ration!B4 -> 0 | E8: =Ration!H15 -> 0 | F8: =Ration!I15 -> 0 | G8: =Ration!J15 -> 0 | H8: =Ration!L15 -> 0 | I8: =Ration!M15 -> 0 | J8: =Ration!N15 -> 0 | K8: =Ration!O15 -> 0 | L8: =Ration!P15 -> 0 | M8: =Ration!Q15 -> 0 | N8: ='Mischung 1'!C15 -> 0 | O8: ='Mischung 1'!B15 -> 0 | R8: ='Mischung 1'!J15 ->  | S8: ='Mischung 1'!K15 ->  | T8: ='Mischung 1'!M15 ->  | U8: ='Mischung 1'!N15 ->  | V8: ='Mischung 1'!O15 ->  | W8: ='Mischung 1'!P15 ->  | X8: ='Mischung 1'!Q15 ->  | Y8: ='Mischung 1'!R15 ->  | Z8: ='Mischung 1'!T15 -> 0 | AA8: ='Mischung 1'!C15 -> 0 | AB8: =Mengenberechnung!B18 -> 0 | AE8: =Mengenberechnung!E18 -> 0 | AH8: ='Mischung 2'!C15 -> 0 | AI8: =Mengenberechnung!B30 -> 0 | AL8: =Mengenberechnung!E30 -> 0
A9: =Ration!D16 -> 0 | B9: =Ration!B5 -> 0 | E9: =Ration!H16 -> 0 | F9: =Ration!I16 -> 0 | G9: =Ration!J16 -> 0 | H9: =Ration!L16 -> 0 | I9: =Ration!M16 -> 0 | J9: =Ration!N16 -> 0 | K9: =Ration!O16 -> 0 | L9: =Ration!P16 -> 0 | M9: =Ration!Q16 -> 0 | N9: ='Mischung 1'!C16 -> 0 | O9: ='Mischung 1'!B16 -> 0 | R9: ='Mischung 1'!J16 ->  | S9: ='Mischung 1'!K16 ->  | T9: ='Mischung 1'!M16 ->  | U9: ='Mischung 1'!N16 ->  | V9: ='Mischung 1'!O16 ->  | W9: ='Mischung 1'!P16 ->  | X9: ='Mischung 1'!Q16 ->  | Y9: ='Mischung 1'!R16 ->  | Z9: ='Mischung 1'!T16 -> 0 | AA9: ='Mischung 1'!C16 -> 0 | AB9: =Mengenberechnung!B19 -> 0 | AE9: =Mengenberechnung!E19 -> 0 | AH9: ='Mischung 2'!C16 -> 0 | AI9: =Mengenberechnung!B31 -> 0 | AL9: =Mengenberechnung!E31 -> 0
A10: =Ration!D17 -> 0 | B10: =Ration!B6 -> 0 | E10: =Ration!H17 -> 0 | F10: =Ration!I17 -> 0 | G10: =Ration!J17 -> 0 | H10: =Ration!L17 -> 0 | I10: =Ration!M17 -> 0 | J10: =Ration!N17 -> 0 | K10: =Ration!O17 -> 0 | L10: =Ration!P17 -> 0 | M10: =Ration!Q17 -> 0 | N10: ='Mischung 1'!C17 -> 0 | O10: ='Mischung 1'!B17 -> 0 | R10: ='Mischung 1'!J17 ->  | S10: ='Mischung 1'!K17 ->  | T10: ='Mischung 1'!M17 ->  | U10: ='Mischung 1'!N17 ->  | V10: ='Mischung 1'!O17 ->  | W10: ='Mischung 1'!P17 ->  | X10: ='Mischung 1'!Q17 ->  | Y10: ='Mischung 1'!R17 ->  | Z10: ='Mischung 1'!T17 -> 0 | AA10: ='Mischung 1'!C17 -> 0 | AB10: =Mengenberechnung!B20 -> 0 | AE10: =Mengenberechnung!E20 -> 0 | AH10: ='Mischung 2'!C17 -> 0 | AI10: =Mengenberechnung!B32 -> 0 | AL10: =Mengenberechnung!E32 -> 0
A11: =Ration!D18 -> 0 | B11: =Ration!B7 -> 0 | E11: =Ration!H18 -> 0 | F11: =Ration!I18 -> 0 | G11: =Ration!J18 -> 0 | H11: =Ration!L18 -> 0 | I11: =Ration!M18 -> 0 | J11: =Ration!N18 -> 0 | K11: =Ration!O18 -> 0 | L11: =Ration!P18 -> 0 | M11: =Ration!Q18 -> 0 | N11: ='Mischung 1'!C18 -> 0 | O11: ='Mischung 1'!B18 -> 0 | R11: ='Mischung 1'!J18 ->  | S11: ='Mischung 1'!K18 ->  | T11: ='Mischung 1'!M18 ->  | U11: ='Mischung 1'!N18 ->  | V11: ='Mischung 1'!O18 ->  | W11: ='Mischung 1'!P18 ->  | X11: ='Mischung 1'!Q18 ->  | Y11: ='Mischung 1'!R18 ->  | Z11: ='Mischung 1'!T18 -> 0 | AA11: ='Mischung 1'!C18 -> 0 | AB11: =Mengenberechnung!B21 -> 0 | AE11: =Mengenberechnung!E21 -> 0 | AH11: ='Mischung 2'!C18 -> 0 | AI11: =Mengenberechnung!B33 -> 0 | AL11: =Mengenberechnung!E33 -> 0
A12: =Ration!D19 -> 0 | B12: =Ration!B8 -> 0 | E12: =Ration!H19 -> 0 | F12: =Ration!I19 -> 0 | G12: =Ration!J19 -> 0 | H12: =Ration!L19 -> 0 | I12: =Ration!M19 -> 0 | J12: =Ration!N19 -> 0 | K12: =Ration!O19 -> 0 | L12: =Ration!P19 -> 0 | M12: =Ration!Q19 -> 0 | N12: ='Mischung 1'!C19 -> 0 | O12: ='Mischung 1'!B19 -> 0 | R12: ='Mischung 1'!J19 ->  | S12: ='Mischung 1'!K19 ->  | T12: ='Mischung 1'!M19 ->  | U12: ='Mischung 1'!N19 ->  | V12: ='Mischung 1'!O19 ->  | W12: ='Mischung 1'!P19 ->  | X12: ='Mischung 1'!Q19 ->  | Y12: ='Mischung 1'!R19 ->  | Z12: ='Mischung 1'!T19 -> 0 | AA12: ='Mischung 1'!C19 -> 0 | AB12: =Mengenberechnung!B22 -> 0 | AE12: =Mengenberechnung!E22 -> 0 | AH12: ='Mischung 2'!C19 -> 0 | AI12: =Mengenberechnung!B34 -> 0 | AL12: =Mengenberechnung!E34 -> 0
A13: =Ration!D20 -> 0 | B13: =Ration!B9 -> 0 | E13: =Ration!H20 -> 0 | F13: =Ration!I20 -> 0 | G13: =Ration!J20 -> 0 | H13: =Ration!L20 -> 0 | I13: =Ration!M20 -> 0 | J13: =Ration!N20 -> 0 | K13: =Ration!O20 -> 0 | L13: =Ration!P20 -> 0 | M13: =Ration!Q20 -> 0 | N13: ='Mischung 1'!C20 -> 0 | O13: ='Mischung 1'!B20 -> 0 | R13: ='Mischung 1'!J20 ->  | S13: ='Mischung 1'!K20 ->  | T13: ='Mischung 1'!M20 ->  | U13: ='Mischung 1'!N20 ->  | V13: ='Mischung 1'!O20 ->  | W13: ='Mischung 1'!P20 ->  | X13: ='Mischung 1'!Q20 ->  | Y13: ='Mischung 1'!R20 ->  | Z13: ='Mischung 1'!T20 -> 0 | AA13: ='Mischung 1'!C20 -> 0 | AB13: =Mengenberechnung!B23 -> 0 | AE13: =Mengenberechnung!E23 -> 0 | AH13: ='Mischung 2'!C20 -> 0 | AI13: =Mengenberechnung!B35 -> 0 | AL13: =Mengenberechnung!E35 -> 0
A14: =Ration!D21 -> 0 | B14: =Ration!B10 -> 0 | E14: =Ration!H21 -> 0 | F14: =Ration!I21 -> 0 | G14: =Ration!J21 -> 0 | H14: =Ration!L21 -> 0 | I14: =Ration!M21 -> 0 | J14: =Ration!N21 -> 0 | K14: =Ration!O21 -> 0 | L14: =Ration!P21 -> 0 | M14: =Ration!Q21 -> 0 | N14: ='Mischung 1'!C21 -> 0 | O14: ='Mischung 1'!B21 -> 0 | R14: ='Mischung 1'!J21 ->  | S14: ='Mischung 1'!K21 ->  | T14: ='Mischung 1'!M21 ->  | U14: ='Mischung 1'!N21 ->  | V14: ='Mischung 1'!O21 ->  | W14: ='Mischung 1'!P21 ->  | X14: ='Mischung 1'!Q21 ->  | Y14: ='Mischung 1'!R21 ->  | Z14: ='Mischung 1'!T21 -> 0 | AA14: ='Mischung 1'!C21 -> 0 | AB14: =Mengenberechnung!B24 -> 0 | AE14: =Mengenberechnung!E24 -> 0 | AH14: ='Mischung 2'!C21 -> 0 | AI14: =Mengenberechnung!B36 -> 0 | AL14: =Mengenberechnung!E36 -> 0
A15: =Ration!D22 -> 0 | B15: =Ration!B11 -> 0 | E15: =Ration!H22 -> 0 | F15: =Ration!I22 -> 0 | G15: =Ration!J22 -> 0 | H15: =Ration!L22 -> 0 | I15: =Ration!M22 -> 0 | J15: =Ration!N22 -> 0 | K15: =Ration!O22 -> 0 | L15: =Ration!P22 -> 0 | M15: =Ration!Q22 -> 0 | N15: ='Mischung 1'!C22 -> 0 | O15: ='Mischung 1'!B22 -> 0 | R15: ='Mischung 1'!J22 ->  | S15: ='Mischung 1'!K22 ->  | T15: ='Mischung 1'!M22 ->  | U15: ='Mischung 1'!N22 ->  | V15: ='Mischung 1'!O22 ->  | W15: ='Mischung 1'!P22 ->  | X15: ='Mischung 1'!Q22 ->  | Y15: ='Mischung 1'!R22 ->  | Z15: ='Mischung 1'!T22 -> 0 | AA15: ='Mischung 1'!C22 -> 0 | AB15: =Mengenberechnung!B25 -> 0 | AE15: =Mengenberechnung!E25 -> 0 | AH15: ='Mischung 2'!C22 -> 0 | AI15: =Mengenberechnung!B37 -> 0 | AL15: =Mengenberechnung!E37 -> 0
A16: =Ration!D23 -> 0 | B16: =Ration!B12 -> 0 | E16: =Ration!H23 -> 0 | F16: =Ration!I23 -> 0 | G16: =Ration!J23 -> 0 | H16: =Ration!L23 -> 0 | I16: =Ration!M23 -> 0 | J16: =Ration!N23 -> 0 | K16: =Ration!O23 -> 0 | L16: =Ration!P23 -> 0 | M16: =Ration!Q23 -> 0 | N16: ='Mischung 1'!C23 -> 0 | O16: ='Mischung 1'!B23 -> 0 | R16: ='Mischung 1'!J23 ->  | S16: ='Mischung 1'!K23 ->  | T16: ='Mischung 1'!M23 ->  | U16: ='Mischung 1'!N23 ->  | V16: ='Mischung 1'!O23 ->  | W16: ='Mischung 1'!P23 ->  | X16: ='Mischung 1'!Q23 ->  | Y16: ='Mischung 1'!R23 ->  | Z16: ='Mischung 1'!T23 -> 0 | AA16: ='Mischung 1'!C23 -> 0 | AB16: =Mengenberechnung!B26 -> 0 | AE16: =Mengenberechnung!E26 -> 0 | AH16: ='Mischung 2'!C23 -> 0 | AI16: =Mengenberechnung!B38 -> 0 | AL16: =Mengenberechnung!E38 -> 0
A17: =Ration!D24 -> 0 | B17: =Ration!B13 -> 0 | E17: =Ration!H24 -> 0 | F17: =Ration!I24 -> 0 | G17: =Ration!J24 -> 0 | H17: =Ration!L24 -> 0 | I17: =Ration!M24 -> 0 | J17: =Ration!N24 -> 0 | K17: =Ration!O24 -> 0 | L17: =Ration!P24 -> 0 | M17: =Ration!Q24 -> 0 | N17: ='Mischung 1'!C24 -> 0 | O17: ='Mischung 1'!B24 -> 0 | R17: ='Mischung 1'!J24 ->  | S17: ='Mischung 1'!K24 ->  | T17: ='Mischung 1'!M24 ->  | U17: ='Mischung 1'!N24 ->  | V17: ='Mischung 1'!O24 ->  | W17: ='Mischung 1'!P24 ->  | X17: ='Mischung 1'!Q24 ->  | Y17: ='Mischung 1'!R24 ->  | Z17: ='Mischung 1'!T24 -> 0 | AA17: ='Mischung 1'!C24 -> 0 | AB17: =Mengenberechnung!B27 -> 0 | AE17: =Mengenberechnung!E27 -> 0 | AH17: ='Mischung 2'!C24 -> 0 | AI17: =Mengenberechnung!B39 -> 0 | AL17: =Mengenberechnung!E39 -> 0
A18: =Ration!D25 -> 0 | E18: =Ration!H25 -> 0 | F18: =Ration!I25 -> 0 | G18: =Ration!J25 -> 0 | H18: =Ration!L25 -> 0 | I18: =Ration!M25 -> 0 | J18: =Ration!N25 -> 0 | K18: =Ration!O25 -> 0 | L18: =Ration!P25 -> 0 | M18: =Ration!Q25 -> 0 | N18: ='Mischung 1'!C25 -> 0 | R18: ='Mischung 1'!J25 -> 0 | S18: ='Mischung 1'!K25 -> 0 | T18: ='Mischung 1'!M25 -> 0 | U18: ='Mischung 1'!N25 -> 0 | V18: ='Mischung 1'!O25 -> 0 | W18: ='Mischung 1'!P25 -> 0 | X18: ='Mischung 1'!Q25 -> 0 | Y18: ='Mischung 1'!R25 -> 0 | Z18: ='Mischung 1'!T25 -> 0
A19: =Ration!D26 -> 0 | B19: KF-Mischung 1 | E19: =Ration!H26 -> 0 | F19: =Ration!I26 -> 0 | G19: =Ration!J26 -> 0 | H19: =Ration!L26 -> 0 | I19: =Ration!M26 -> 0 | J19: =Ration!N26 -> 0 | K19: =Ration!O26 -> 0 | L19: =Ration!P26 -> 0 | M19: =Ration!Q26 -> 0 | AA19: Ladeliste für Futtermischwagen | AI19: Anzahl Tiere: | AL19: =Mengenberechnung!F2 -> 0
A20: =Ration!D27 -> 0 | B20: KF-Mischung 2 | E20: =Ration!H27 -> 0 | F20: =Ration!I27 -> 0 | G20: =Ration!J27 -> 0 | H20: =Ration!L27 -> 0 | I20: =Ration!M27 -> 0 | J20: =Ration!N27 -> 0 | K20: =Ration!O27 -> 0 | L20: =Ration!P27 -> 0 | M20: =Ration!Q27 -> 0 | N20: % | O20: KF Mischung 2 | R20: nXP g | S20: ME | T20: Ca g | U20: P g | V20: Mg g | W20: Na g | X20: K g | Y20: Cl g | Z20: Preis | AA20: kg | AC20: Futtermittel
A21: =Ration!D28 -> 0 | B21: Gesamt | E21: =Ration!H28 -> 0 | F21: =Ration!I28 -> 0 | G21: =Ration!J28 -> 0 | H21: =Ration!L28 -> 0 | I21: =Ration!M28 -> 0 | J21: =Ration!N28 -> 0 | K21: =Ration!O28 -> 0 | L21: =Ration!P28 -> 0 | M21: =Ration!Q28 -> 0 | N21: ='Mischung 2'!C15 -> 0 | O21: ='Mischung 2'!B15 -> 0 | R21: ='Mischung 2'!J15 ->  | S21: ='Mischung 2'!K15 ->  | T21: ='Mischung 2'!M15 ->  | U21: ='Mischung 2'!N15 ->  | V21: ='Mischung 2'!O15 ->  | W21: ='Mischung 2'!P15 ->  | X21: ='Mischung 2'!Q15 ->  | Y21: ='Mischung 2'!R15 ->  | Z21: ='Mischung 2'!T15 -> 0 | AA21: =Mengenberechnung!E4 -> 0 | AC21: =Mengenberechnung!B4 -> 0
N22: ='Mischung 2'!C16 -> 0 | O22: ='Mischung 2'!B16 -> 0 | R22: ='Mischung 2'!J16 ->  | S22: ='Mischung 2'!K16 ->  | T22: ='Mischung 2'!M16 ->  | U22: ='Mischung 2'!N16 ->  | V22: ='Mischung 2'!O16 ->  | W22: ='Mischung 2'!P16 ->  | X22: ='Mischung 2'!Q16 ->  | Y22: ='Mischung 2'!R16 ->  | Z22: ='Mischung 2'!T16 -> 0 | AA22: =Mengenberechnung!E5 -> 0 | AC22: =Mengenberechnung!B5 -> 0 | AI22: Gesamtgew. kg: | AL22: =Mengenberechnung!F11 -> 0
A23: Vergleich Ration - Sollwert | N23: ='Mischung 2'!C17 -> 0 | O23: ='Mischung 2'!B17 -> 0 | R23: ='Mischung 2'!J17 ->  | S23: ='Mischung 2'!K17 ->  | T23: ='Mischung 2'!M17 ->  | U23: ='Mischung 2'!N17 ->  | V23: ='Mischung 2'!O17 ->  | W23: ='Mischung 2'!P17 ->  | X23: ='Mischung 2'!Q17 ->  | Y23: ='Mischung 2'!R17 ->  | Z23: ='Mischung 2'!T17 -> 0 | AA23: =Mengenberechnung!E6 -> 0 | AC23: =Mengenberechnung!B6 -> 0
C24: Sollwert | E24: Ration | J24: Sollwert | L24: Ration | N24: ='Mischung 2'!C18 -> 0 | O24: ='Mischung 2'!B18 -> 0 | R24: ='Mischung 2'!J18 ->  | S24: ='Mischung 2'!K18 ->  | T24: ='Mischung 2'!M18 ->  | U24: ='Mischung 2'!N18 ->  | V24: ='Mischung 2'!O18 ->  | W24: ='Mischung 2'!P18 ->  | X24: ='Mischung 2'!Q18 ->  | Y24: ='Mischung 2'!R18 ->  | Z24: ='Mischung 2'!T18 -> 0 | AA24: =Mengenberechnung!E7 -> 0 | AC24: =Mengenberechnung!B7 -> 0
A25: TM | C25: =Ration!E30 -> 0 | E25: =Ration!E28 -> 0 | H25: Ca | J25: =Ration!L30 -> 0 | L25: =Ration!L28 -> 0 | N25: ='Mischung 2'!C19 -> 0 | O25: ='Mischung 2'!B19 -> 0 | R25: ='Mischung 2'!J19 ->  | S25: ='Mischung 2'!K19 ->  | T25: ='Mischung 2'!M19 ->  | U25: ='Mischung 2'!N19 ->  | V25: ='Mischung 2'!O19 ->  | W25: ='Mischung 2'!P19 ->  | X25: ='Mischung 2'!Q19 ->  | Y25: ='Mischung 2'!R19 ->  | Z25: ='Mischung 2'!T19 -> 0 | AA25: =Mengenberechnung!E8 -> 0 | AC25: =Mengenberechnung!B8 -> 0
A26: XF | C26: >18% | E26: =Ration!F31 -> 0 | H26: P | J26: =Ration!M30 -> 0 | L26: =Ration!M28 -> 0 | N26: ='Mischung 2'!C20 -> 0 | O26: ='Mischung 2'!B20 -> 0 | R26: ='Mischung 2'!J20 ->  | S26: ='Mischung 2'!K20 ->  | T26: ='Mischung 2'!M20 ->  | U26: ='Mischung 2'!N20 ->  | V26: ='Mischung 2'!O20 ->  | W26: ='Mischung 2'!P20 ->  | X26: ='Mischung 2'!Q20 ->  | Y26: ='Mischung 2'!R20 ->  | Z26: ='Mischung 2'!T20 -> 0 | AA26: =Mengenberechnung!E9 -> 0 | AC26: =Mengenberechnung!B9 -> 0
A27: aNDFom | C27: >28% | E27: =Ration!G31 -> 0 | H27: Mg | J27: =Ration!N30 -> 0 | L27: =Ration!N28 -> 0 | N27: ='Mischung 2'!C21 -> 0 | O27: ='Mischung 2'!B21 -> 0 | R27: ='Mischung 2'!J21 ->  | S27: ='Mischung 2'!K21 ->  | T27: ='Mischung 2'!M21 ->  | U27: ='Mischung 2'!N21 ->  | V27: ='Mischung 2'!O21 ->  | W27: ='Mischung 2'!P21 ->  | X27: ='Mischung 2'!Q21 ->  | Y27: ='Mischung 2'!R21 ->  | Z27: ='Mischung 2'!T21 -> 0 | AA27: =Mengenberechnung!E10 -> 0 | AC27: =Mengenberechnung!B10 -> 0
A28: XP | C28: =Ration!H30 -> 0 | E28: =Ration!H28 -> 0 | H28: Na | J28: =Ration!O30 -> 0 | L28: =Ration!O28 -> 0 | N28: ='Mischung 2'!C22 -> 0 | O28: ='Mischung 2'!B22 -> 0 | R28: ='Mischung 2'!J22 ->  | S28: ='Mischung 2'!K22 ->  | T28: ='Mischung 2'!M22 ->  | U28: ='Mischung 2'!N22 ->  | V28: ='Mischung 2'!O22 ->  | W28: ='Mischung 2'!P22 ->  | X28: ='Mischung 2'!Q22 ->  | Y28: ='Mischung 2'!R22 ->  | Z28: ='Mischung 2'!T22 -> 0 | AA28: =Mengenberechnung!E11 -> 0 | AC28: =Mengenberechnung!B11 -> 0
A29: nXP | C29: =Ration!I30 -> 0 | E29: =Ration!I28 -> 0 | H29: K | J29: =Ration!P30 -> 0 | L29: =Ration!P28 -> 0 | N29: ='Mischung 2'!C23 -> 0 | O29: ='Mischung 2'!B23 -> 0 | R29: ='Mischung 2'!J23 ->  | S29: ='Mischung 2'!K23 ->  | T29: ='Mischung 2'!M23 ->  | U29: ='Mischung 2'!N23 ->  | V29: ='Mischung 2'!O23 ->  | W29: ='Mischung 2'!P23 ->  | X29: ='Mischung 2'!Q23 ->  | Y29: ='Mischung 2'!R23 ->  | Z29: ='Mischung 2'!T23 -> 0 | AA29: =Mengenberechnung!E12 -> 0 | AC29: =Mengenberechnung!B12 -> 0
A30: ME | C30: =Ration!J30 -> 0 | E30: =Ration!J28 -> 0 | H30: Cl | J30: =Ration!Q30 -> 0 | L30: =Ration!Q28 -> 0 | N30: ='Mischung 2'!C24 -> 0 | O30: ='Mischung 2'!B24 -> 0 | R30: ='Mischung 2'!J24 ->  | S30: ='Mischung 2'!K24 ->  | T30: ='Mischung 2'!M24 ->  | U30: ='Mischung 2'!N24 ->  | V30: ='Mischung 2'!O24 ->  | W30: ='Mischung 2'!P24 ->  | X30: ='Mischung 2'!Q24 ->  | Y30: ='Mischung 2'!R24 ->  | Z30: ='Mischung 2'!T24 -> 0 | AA30: =Mengenberechnung!E13 -> 0 | AC30: =Mengenberechnung!B13 -> 0
A31: NEL | C31: =Ration!K30 -> 0 | E31: =Ration!K28 -> 0 | H31: Futterkosten / Tag | L31: =Ration!S28 -> 0 | N31: ='Mischung 2'!C25 -> 0 | R31: ='Mischung 2'!J25 -> 0 | S31: ='Mischung 2'!K25 -> 0 | T31: ='Mischung 2'!M25 -> 0 | U31: ='Mischung 2'!N25 -> 0 | V31: ='Mischung 2'!O25 -> 0 | W31: ='Mischung 2'!P25 -> 0 | X31: ='Mischung 2'!Q25 -> 0 | Y31: ='Mischung 2'!R25 -> 0 | Z31: ='Mischung 2'!T25 -> 0 | AA31: =Mengenberechnung!E14 -> 0 | AC31: Kraftfuttermischung 1
AA32: =Mengenberechnung!E15 -> 0 | AC32: Kraftfuttermischung 2
